NUMERO_MANDATO;RIGA_MANDATO;IMPORTO_RIGA;IMPORTO_MANDATO;BENEFICIARIO;CIG;TITOLO_PAGAMENTO;DATA_MANDATO;CAPITOLO;ARTICOLO;NUMERO_IMPEGNO;TITOLO;DESCR_TITOLO;LIVELLO_II;DESCR_LIVELLO_II;LIVELLO_III;DESCR_LIVELLO_III;LIVELLO_IV;DESCR_LIVELLO_IV;LIVELLO_V;DESCR_LIVELLO_V;DATA_PAG_EFF
1567;1;1.518,37;2.126,72;FIORE SALVATORE VITTORIO; ;indennita' funzione MESE DI SETTEMBRE 2017;02/10/2017;1001;0;42;1;Spese correnti;3;Acquisto di beni e servizi;2;Acquisto di servizi;1;Organi e incarichi istituzionali dell'amministrazione;1;Organi istituzionali dell'amministrazione - Indennità;02/10/2017
1567;2;152,83;2.126,72;INTERDONATO ARMANDO; ;indennita' funzione MESE DI SETTEMBRE 2017;02/10/2017;1001;0;42;1;Spese correnti;3;Acquisto di beni e servizi;2;Acquisto di servizi;1;Organi e incarichi istituzionali dell'amministrazione;1;Organi istituzionali dell'amministrazione - Indennità;02/10/2017
1567;3;228,76;2.126,72;LAMANCUSA MARCO; ;indennita' funzione MESE DI SETTEMBRE 2017;02/10/2017;1001;0;42;1;Spese correnti;3;Acquisto di beni e servizi;2;Acquisto di servizi;1;Organi e incarichi istituzionali dell'amministrazione;1;Organi istituzionali dell'amministrazione - Indennità;02/10/2017
1567;4;228,76;2.126,72;PETTINATO  ROSA SANDRA; ;indennita' funzione MESE DI SETTEMBRE 2017;02/10/2017;1001;0;42;1;Spese correnti;3;Acquisto di beni e servizi;2;Acquisto di servizi;1;Organi e incarichi istituzionali dell'amministrazione;1;Organi istituzionali dell'amministrazione - Indennità;02/10/2017
1568;1;228,76;228,76;FORZANO GIUSEPPE; ;Indennita' funzione Presidente Consiglio SETTEMBRE 2017;02/10/2017;1001;0;42;1;Spese correnti;3;Acquisto di beni e servizi;2;Acquisto di servizi;1;Organi e incarichi istituzionali dell'amministrazione;1;Organi istituzionali dell'amministrazione - Indennità;02/10/2017
1575;1;500;500;CTS CENTRO TEATRALE SICILIANO;ZCE1CAFB03;SALDO Fatt.n. FATTPA 3_17  del 17/03/2017 DELIBERA 234 DEL 28/12/2016-LABORATORIO TEATRALE PRESSO BIBLIOTECA COMUNALE PERIODO 10/02-03/03/17;02/10/2017;1477;0;531;1;Spese correnti;10;Altre spese correnti;99;Altre spese correnti n.a.c.;99;Altre spese correnti n.a.c.;999;Altre spese correnti n.a.c.;02/10/2017
1576;1;950;950;Cafarelli Libreria Capitolo18 di Teodoro;Z231CA2D1B;SALDO Fatt.n. 000006-2017-PA  del 04/03/2017 Progetto CULTURARTE. CIG Z231CA2D1B;02/10/2017;1477;0;530;1;Spese correnti;10;Altre spese correnti;99;Altre spese correnti n.a.c.;99;Altre spese correnti n.a.c.;999;Altre spese correnti n.a.c.;02/10/2017
1577;1;550;550;Cafarelli Libreria Capitolo18 di Teodoro;ZAD1CA2D0B;SALDO Fatt.n. 000005-2017-PA  del 04/03/2017 Progetto Culturarte CIG: ZAD1CA2D0B;02/10/2017;1477;0;529;1;Spese correnti;10;Altre spese correnti;99;Altre spese correnti n.a.c.;99;Altre spese correnti n.a.c.;999;Altre spese correnti n.a.c.;02/10/2017
1578;1;1.495,50;1.495,50;VASTARREDO SRL;ZBA1C156AF;SALDO Fatt.n. 000072  del 28/02/2017 FATTURA P.A.;02/10/2017;1477;0;367;1;Spese correnti;10;Altre spese correnti;99;Altre spese correnti n.a.c.;99;Altre spese correnti n.a.c.;999;Altre spese correnti n.a.c.;02/10/2017
1579;1;120;5.660,20;SIAE; ;SALDO Fatt.n. 1617025535  del 23/08/2017 DIRITTI SIAE MANIFESTAZIONI ESTATE 2017;02/10/2017;2000;1;206;1;Spese correnti;3;Acquisto di beni e servizi;2;Acquisto di servizi;2;Organizzazione eventi, pubblicita` e servizi per trasferta;5;Organizzazione e partecipazione a manifestazioni e convegni;02/10/2017
1579;2;263,3;5.660,20;SIAE; ;SALDO Fatt.n. 1617025533  del 23/08/2017 DIRITTI SIAE MANIFESTAZIONI ESTATE 2017;02/10/2017;2000;1;206;1;Spese correnti;3;Acquisto di beni e servizi;2;Acquisto di servizi;2;Organizzazione eventi, pubblicita` e servizi per trasferta;5;Organizzazione e partecipazione a manifestazioni e convegni;02/10/2017
1579;3;274,89;5.660,20;SIAE; ;SALDO Fatt.n. 1617025532  del 23/08/2017 DIRITTI SIAE MANIFESTAZIONI ESTATE 2017;02/10/2017;2000;1;206;1;Spese correnti;3;Acquisto di beni e servizi;2;Acquisto di servizi;2;Organizzazione eventi, pubblicita` e servizi per trasferta;5;Organizzazione e partecipazione a manifestazioni e convegni;02/10/2017
1579;4;398,81;5.660,20;SIAE; ;SALDO Fatt.n. 1617025534  del 23/08/2017 DIRITTI SIAE MANIFESTAZIONI ESTATE 2017;02/10/2017;2000;1;206;1;Spese correnti;3;Acquisto di beni e servizi;2;Acquisto di servizi;2;Organizzazione eventi, pubblicita` e servizi per trasferta;5;Organizzazione e partecipazione a manifestazioni e convegni;02/10/2017
1579;5;408,4;5.660,20;SIAE; ;SALDO Fatt.n. 1617024969  del 18/08/2017 DIRITTI SIAE MANIFESTAZIONI;02/10/2017;2000;1;206;1;Spese correnti;3;Acquisto di beni e servizi;2;Acquisto di servizi;2;Organizzazione eventi, pubblicita` e servizi per trasferta;5;Organizzazione e partecipazione a manifestazioni e convegni;02/10/2017
1579;6;522,72;5.660,20;SIAE; ;SALDO Fatt.n. 1617025537  del 23/08/2017 DIRITTI SIAE MANIFESTAZIONI ESTATE 2017;02/10/2017;2000;1;206;1;Spese correnti;3;Acquisto di beni e servizi;2;Acquisto di servizi;2;Organizzazione eventi, pubblicita` e servizi per trasferta;5;Organizzazione e partecipazione a manifestazioni e convegni;02/10/2017
1579;7;1.308,57;5.660,20;SIAE; ;SALDO Fatt.n. 1617025531  del 23/08/2017 DIRITTI SIAE MANIFESTAZIONI ESTATE 2017;02/10/2017;2000;1;206;1;Spese correnti;3;Acquisto di beni e servizi;2;Acquisto di servizi;2;Organizzazione eventi, pubblicita` e servizi per trasferta;5;Organizzazione e partecipazione a manifestazioni e convegni;02/10/2017
1579;8;2.368,51;5.660,20;SIAE; ;SALDO Fatt.n. 1617025536  del 23/08/2017 DIRITTI SIAE MANIFESTAZIONI ESTATE 2017;02/10/2017;2000;1;206;1;Spese correnti;3;Acquisto di beni e servizi;2;Acquisto di servizi;2;Organizzazione eventi, pubblicita` e servizi per trasferta;5;Organizzazione e partecipazione a manifestazioni e convegni;02/10/2017
1580;1;2.684,00;2.684,00;TORRE SPETTACOLI DI TORRE ALESSANDRA;Z671F80ED2;SALDO Fatt.n. 000002-2017-FE  del 02/09/2017 SPETTACOLO DI CABARET CON MASSIMO SPATA 21/08/2017;02/10/2017;2000;1;210;1;Spese correnti;3;Acquisto di beni e servizi;2;Acquisto di servizi;2;Organizzazione eventi, pubblicita` e servizi per trasferta;5;Organizzazione e partecipazione a manifestazioni e convegni;02/10/2017
1581;1;5.000,00;5.000,00;ASSOCIAZIONE SOCIO-CULT. VENTO DEL SUD; ;RIMBORSO SPESE MANIFESTAZIONE BLUES NOTES 2017;02/10/2017;2250;0;284;1;Spese correnti;3;Acquisto di beni e servizi;2;Acquisto di servizi;99;Altri servizi;999;Altri servizi diversi n.a.c.;02/10/2017
1585;1;26,46;26,46;ECONOMO COMUNALE; ;RIMBORSO SPESE ECONOMATO 3^ TRIMESTRE 2017;03/10/2017;1410;0;219;1;Spese correnti;3;Acquisto di beni e servizi;2;Acquisto di servizi;99;Altri servizi;999;Altri servizi diversi n.a.c.;03/10/2017
1586;1;99,43;99,43;ECONOMO COMUNALE; ;RIMBORSO SPESE ECONOMATO 3^ TRIMESTRE 2017;03/10/2017;2120;3;238;1;Spese correnti;3;Acquisto di beni e servizi;2;Acquisto di servizi;9;Manutenzione ordinaria e riparazioni;11;Manutenzione ordinaria e riparazioni di altri beni materiali;03/10/2017
1587;1;73,2;73,2;ECONOMO COMUNALE; ;RIMBORSO SPESE ECONOMATO 3^ TRIMESTRE 2017;03/10/2017;2120;5;256;1;Spese correnti;3;Acquisto di beni e servizi;2;Acquisto di servizi;9;Manutenzione ordinaria e riparazioni;11;Manutenzione ordinaria e riparazioni di altri beni materiali;03/10/2017
1588;1;67,1;67,1;ECONOMO COMUNALE; ;RIMBORSO SPESE ECONOMATO 3^ TRIMESTRE 2017;03/10/2017;2140;0;221;1;Spese correnti;3;Acquisto di beni e servizi;1;Acquisto di beni;2;Altri beni di consumo;6;Materiale informatico;03/10/2017
1589;1;79,66;79,66;ECONOMO COMUNALE; ;RIMBORSO SPESE ECONOMATO 3^ TRIMESTRE 2017;03/10/2017;2140;6;257;1;Spese correnti;3;Acquisto di beni e servizi;1;Acquisto di beni;2;Altri beni di consumo;6;Materiale informatico;03/10/2017
1590;1;105,92;105,92;ECONOMO COMUNALE; ;RIMBORSO SPESE ECONOMATO 3^ TRIMESTRE 2017;03/10/2017;2140;8;248;1;Spese correnti;3;Acquisto di beni e servizi;1;Acquisto di beni;2;Altri beni di consumo;6;Materiale informatico;03/10/2017
1591;1;149,19;149,19;ECONOMO COMUNALE; ;RIMBORSO SPESE ECONOMATO 3^ TRIMESTRE 2017;03/10/2017;2150;1;223;2;Spese in conto capitale;2;Investimenti fissi lordi e acquisto di terreni;1;Beni materiali;7;Hardware;999;Hardware n.a.c.;03/10/2017
1592;1;48,58;48,58;ECONOMO COMUNALE; ;RIMBORSO SPESE ECONOMATO 3^ TRIMESTRE 2017;03/10/2017;2150;8;250;2;Spese in conto capitale;2;Investimenti fissi lordi e acquisto di terreni;1;Beni materiali;7;Hardware;999;Hardware n.a.c.;03/10/2017
1593;1;127,42;127,42;ECONOMO COMUNALE; ;RIMBORSO SPESE ECONOMATO 3^ TRIMESTRE 2017;03/10/2017;6050;0;224;1;Spese correnti;3;Acquisto di beni e servizi;1;Acquisto di beni;2;Altri beni di consumo;1;Carta, cancelleria e stampati;03/10/2017
1594;1;100;100;ECONOMO COMUNALE; ;RIMBORSO SPESE ECONOMATO 3^ TRIMESTRE 2017;03/10/2017;6050;5;225;1;Spese correnti;3;Acquisto di beni e servizi;1;Acquisto di beni;2;Altri beni di consumo;1;Carta, cancelleria e stampati;03/10/2017
1595;1;1.570,69;1.570,69;ASSOCIAZIONE FRATERNITA' MISERICORDIA; ;CONTRIBUTO REGIONALE PROTEZIONE CIVILE RIMBORSO SPESE ASSICURATIVE VOLONTARI ANNO 2015 PRIORITA' 1;03/10/2017;1851;0;265;1;Spese correnti;4;Trasferimenti correnti;4;Trasferimenti correnti a Istituzioni Sociali Private;1;Trasferimenti correnti a Istituzioni Sociali Private;1;Trasferimenti correnti a Istituzioni Sociali Private;03/10/2017
1596;1;4.582,56;4.582,56;ASSOCIAZIONE FRATERNITA' MISERICORDIA; ;CONTRIBUTO REGIONALE PROTEZIONE CIVILE RIMBORSO SPESE ASSICURATIVE R.C. PER I MEZZI ANNO 2015 PRIORITA' 2;03/10/2017;1851;0;265;1;Spese correnti;4;Trasferimenti correnti;4;Trasferimenti correnti a Istituzioni Sociali Private;1;Trasferimenti correnti a Istituzioni Sociali Private;1;Trasferimenti correnti a Istituzioni Sociali Private;03/10/2017
1600;1;5.630,32;5.630,32;PIZZO PIPPO;7140282B19;ACCONTO Fatt.n. 60|2017  del 31/08/2017 Serv. spazzamento,raccolta,trasporto rr.ss.uu. agosto 2017;04/10/2017;1744;0;411;1;Spese correnti;3;Acquisto di beni e servizi;2;Acquisto di servizi;15;Contratti di servizio pubblico;5;Contratti di servizio per il conferimento in discarica dei rifiuti;04/10/2017
1601;1;12.585,97;12.585,97;PIZZO PIPPO;7140282B19;SALDO Fatt.n. 60|2017  del 31/08/2017 Serv. spazzamento,raccolta,trasporto rr.ss.uu. agosto 2017;04/10/2017;1744;0;297;1;Spese correnti;3;Acquisto di beni e servizi;2;Acquisto di servizi;15;Contratti di servizio pubblico;5;Contratti di servizio per il conferimento in discarica dei rifiuti;04/10/2017
1602;1;656,02;656,02;Xerox Spa;ZF21C92253;SALDO Fatt.n. 170009549 /G  del 06/09/2017 CANONE LOCAZIONE N.2 FOTOCOPIATORI 01/05-31/07/2017;04/10/2017;2110;3;436;1;Spese correnti;3;Acquisto di beni e servizi;2;Acquisto di servizi;7;Utilizzo di beni di terzi;8;Noleggi di impianti e macchinari;04/10/2017
1604;1;24,47;24,47;TESORIERE COMUNALE-CREDITO SICILIANO; ;TELEPASS sett. 2017;05/10/2017;1017;0;38;1;Spese correnti;3;Acquisto di beni e servizi;2;Acquisto di servizi;99;Altri servizi;999;Altri servizi diversi n.a.c.;06/10/2017
1605;1;1.836,62;1.836,62;ECONOMO COMUNALE; ;RIMBORSO SPESE ECONOMATO PER MANIFESTAZIONE ESTATE ANNO 2017;06/10/2017;2000;1;194;1;Spese correnti;3;Acquisto di beni e servizi;2;Acquisto di servizi;2;Organizzazione eventi, pubblicita` e servizi per trasferta;5;Organizzazione e partecipazione a manifestazioni e convegni;06/10/2017
1606;1;171,8;171,8;ECONOMO COMUNALE; ;RIMBORSO SPESE ECONOMATO PER FESTIVITA' SAN BIAGIO 2017;06/10/2017;2000;1;295;1;Spese correnti;3;Acquisto di beni e servizi;2;Acquisto di servizi;2;Organizzazione eventi, pubblicita` e servizi per trasferta;5;Organizzazione e partecipazione a manifestazioni e convegni;06/10/2017
1609;1;167,65;167,65;TELECOM ITALIA S.P.A.; ;SALDO Fatt.n. 8V00484636  del 08/09/2017 FATT. 5 BIM.2017;06/10/2017;6040;9;428;1;Spese correnti;3;Acquisto di beni e servizi;2;Acquisto di servizi;5;Utenze e canoni;1;Telefonia fissa;13/10/2017
1611;1;0,04;1.552,29;AL CENTESIMO SOC. COOP. S.R.L.;ZD01C2A31C;SALDO Fatt.n. 24/E  del 02/08/2017 generi alimentari e materiale d'uso per asilo nido lug..2017;09/10/2017;1776;1;197;1;Spese correnti;3;Acquisto di beni e servizi;1;Acquisto di beni;2;Altri beni di consumo;999;Altri beni e materiali di consumo n.a.c.;09/10/2017
1611;2;485,05;1.552,29;AL CENTESIMO SOC. COOP. S.R.L.;ZD01C2A31C;ACCONTO Fatt.n. 24/E  del 02/08/2017 generi alimentari e materiale d'uso per asilo nido lug..2017;09/10/2017;1776;1;197;1;Spese correnti;3;Acquisto di beni e servizi;1;Acquisto di beni;2;Altri beni di consumo;999;Altri beni e materiali di consumo n.a.c.;09/10/2017
1611;3;1.067,20;1.552,29;AL CENTESIMO SOC. COOP. S.R.L.;ZD01C2A31C;SALDO Fatt.n. 22/E  del 11/07/2017 generi alimentari e materiale d'uso per asilo nido giu.2017;09/10/2017;1776;1;197;1;Spese correnti;3;Acquisto di beni e servizi;1;Acquisto di beni;2;Altri beni di consumo;999;Altri beni e materiali di consumo n.a.c.;09/10/2017
1612;1;0,01;297,89;AL CENTESIMO SOC. COOP. S.R.L.;Z201C2A1C1;SALDO Fatt.n. 23/E  del 29/07/2017 carne  per asilo nido giu.2017;09/10/2017;1776;1;197;1;Spese correnti;3;Acquisto di beni e servizi;1;Acquisto di beni;2;Altri beni di consumo;999;Altri beni e materiali di consumo n.a.c.;09/10/2017
1612;2;78,21;297,89;AL CENTESIMO SOC. COOP. S.R.L.;ZD01C2A31C;SALDO Fatt.n. 25/E  del 02/08/2017 generi alimentari e materiale d'uso per asilo nido lug.2017;09/10/2017;1776;1;197;1;Spese correnti;3;Acquisto di beni e servizi;1;Acquisto di beni;2;Altri beni di consumo;999;Altri beni e materiali di consumo n.a.c.;09/10/2017
1612;3;219,69;297,89;AL CENTESIMO SOC. COOP. S.R.L.;ZD01C2A31C;SALDO Fatt.n. 23/E  del 29/07/2017 carne  per asilo nido giu.2017;09/10/2017;1776;1;197;1;Spese correnti;3;Acquisto di beni e servizi;1;Acquisto di beni;2;Altri beni di consumo;999;Altri beni e materiali di consumo n.a.c.;09/10/2017
1613;1;700;700;CRI.MA.DA.;ZE01F8110A;SALDO Fatt.n. 4 E  del 08/09/2017 SPETTACOLO SCHIUMA PARTY DEL 21/08/2017;09/10/2017;2000;1;212;1;Spese correnti;3;Acquisto di beni e servizi;2;Acquisto di servizi;2;Organizzazione eventi, pubblicita` e servizi per trasferta;5;Organizzazione e partecipazione a manifestazioni e convegni;09/10/2017
1615;1;168,79;168,79;ECONOMO COMUNALE; ;RIMBORSO SPESE SOSTENUTE DALL'ECONOMO PER REALIZZAZIONE SPETTACOLI ESTATE 2017;10/10/2017;2000;1;293;1;Spese correnti;3;Acquisto di beni e servizi;2;Acquisto di servizi;2;Organizzazione eventi, pubblicita` e servizi per trasferta;5;Organizzazione e partecipazione a manifestazioni e convegni;10/10/2017
1618;1;700,6;700,6;ARTE SPETTACOLO CULTURA PRODUCTION S.R.L.;Z111F7C5A3;SALDO Fatt.n. FatPAM 20  del 05/08/2017 spettacolo musicale big mimma;11/10/2017;2000;1;198;1;Spese correnti;3;Acquisto di beni e servizi;2;Acquisto di servizi;2;Organizzazione eventi, pubblicita` e servizi per trasferta;5;Organizzazione e partecipazione a manifestazioni e convegni;11/10/2017
1619;1;2.038,27;2.038,27;LO PRESTI GIORGIO;ZA01CBD6FC;SALDO Fatt.n. FATTPA 5_17  del 13/09/2017 LAVORI SISTEMAZIONE STRADE COMUNALI - SALDO;11/10/2017;10500;4;543;2;Spese in conto capitale;2;Investimenti fissi lordi e acquisto di terreni;1;Beni materiali;9;Beni immobili;13;Altre vie di comunicazione;11/10/2017
1620;1;3.404,61;3.404,61;BENFATTA SALVATORE & C. S.N.C.;Z571FE08F1;ACCONTO Fatt.n. 000007-2017-FATTURE  del 14/09/2017 IMPEGNO SPESA N.148 DEL 13/09/2017-LAVORI RIPRISTINO CONODOTTA IDRICA CENTRO E FRAZIONI;11/10/2017;4035;0;276;2;Spese in conto capitale;2;Investimenti fissi lordi e acquisto di terreni;1;Beni materiali;9;Beni immobili;13;Altre vie di comunicazione;11/10/2017
1621;1;1.897,86;1.897,86;BENFATTA SALVATORE & C. S.N.C.;Z571FE08F1;ACCONTO Fatt.n. 000007-2017-FATTURE  del 14/09/2017 IMPEGNO SPESA N.148 DEL 13/09/2017-LAVORI RIPRISTINO CONODOTTA IDRICA CENTRO E FRAZIONI;11/10/2017;3304;8;277;2;Spese in conto capitale;2;Investimenti fissi lordi e acquisto di terreni;1;Beni materiali;9;Beni immobili;10;Infrastrutture idrauliche;11/10/2017
1622;1;3.049,20;3.049,20;BENFATTA SALVATORE & C. S.N.C.;Z571FE08F1;SALDO Fatt.n. 000007-2017-FATTURE  del 14/09/2017 IMPEGNO SPESA N.148 DEL 13/09/2017-LAVORI RIPRISTINO CONODOTTA IDRICA CENTRO E FRAZIONI;11/10/2017;1570;0;278;1;Spese correnti;3;Acquisto di beni e servizi;2;Acquisto di servizi;9;Manutenzione ordinaria e riparazioni;11;Manutenzione ordinaria e riparazioni di altri beni materiali;11/10/2017
1623;1;51,02;51,02;KUWAIT PETROLEUM ITALIA S.P.A.;6516542493;Fatt.n. PJ00094592 del 31/08/2017 CARBURANTE PER AUTOMEZZI COMUNALI AGOSTO 2017;11/10/2017;6080;1;24;1;Spese correnti;3;Acquisto di beni e servizi;1;Acquisto di beni;2;Altri beni di consumo;2;Carburanti, combustibili e lubrificanti;11/10/2017
1624;1;65,43;148,68;KUWAIT PETROLEUM ITALIA S.P.A.;6516542493;Fatt.n. PJ00094592 del 31/08/2017 CARBURANTE PER AUTOMEZZI COMUNALI AGOSTO 2017;11/10/2017;6080;2;25;1;Spese correnti;3;Acquisto di beni e servizi;1;Acquisto di beni;2;Altri beni di consumo;2;Carburanti, combustibili e lubrificanti;11/10/2017
1624;2;82,25;148,68;KUWAIT PETROLEUM ITALIA S.P.A.;6516542493;Fatt.n. PJ00094592 del 31/08/2017 CARBURANTE PER AUTOMEZZI COMUNALI AGOSTO 2017;11/10/2017;6080;2;25;1;Spese correnti;3;Acquisto di beni e servizi;1;Acquisto di beni;2;Altri beni di consumo;2;Carburanti, combustibili e lubrificanti;11/10/2017
1625;1;245,53;245,53;KUWAIT PETROLEUM ITALIA S.P.A.;6516542493;Fatt.n. PJ00094592 del 31/08/2017 CARBURANTE PER AUTOMEZZI COMUNALI AGOSTO 2017;11/10/2017;6080;3;26;1;Spese correnti;3;Acquisto di beni e servizi;1;Acquisto di beni;2;Altri beni di consumo;2;Carburanti, combustibili e lubrificanti;11/10/2017
1626;1;509,21;509,21;KUWAIT PETROLEUM ITALIA S.P.A.;6516542493;Fatt.n. PJ00094592 del 31/08/2017 CARBURANTE PER AUTOMEZZI COMUNALI AGOSTO 2017;11/10/2017;6080;4;27;1;Spese correnti;3;Acquisto di beni e servizi;1;Acquisto di beni;2;Altri beni di consumo;2;Carburanti, combustibili e lubrificanti;11/10/2017
1627;1;903,73;903,73;KUWAIT PETROLEUM ITALIA S.P.A.;6516542493;Fatt.n. PJ00094592 del 31/08/2017 CARBURANTE PER AUTOMEZZI COMUNALI AGOSTO 2017;11/10/2017;6080;5;28;1;Spese correnti;3;Acquisto di beni e servizi;1;Acquisto di beni;2;Altri beni di consumo;2;Carburanti, combustibili e lubrificanti;11/10/2017
1628;1;56,07;56,07;KUWAIT PETROLEUM ITALIA S.P.A.;6516542493;Fatt.n. PJ00094592 del 31/08/2017 CARBURANTE PER AUTOMEZZI COMUNALI AGOSTO 2017;11/10/2017;6080;7;29;1;Spese correnti;3;Acquisto di beni e servizi;1;Acquisto di beni;2;Altri beni di consumo;2;Carburanti, combustibili e lubrificanti;11/10/2017
1633;1;1.000,00;1.000,00;CHIC&SPUNTINI D'ARTE SRLS;Z891F80E2E;SALDO Fatt.n. 1/PA  del 23/08/2017 PRESTAZIONE ARTISTICA DI JOVINE + DJ;13/10/2017;2000;1;215;1;Spese correnti;3;Acquisto di beni e servizi;2;Acquisto di servizi;2;Organizzazione eventi, pubblicita` e servizi per trasferta;5;Organizzazione e partecipazione a manifestazioni e convegni;13/10/2017
1634;1;0,01;6.340,47;SOCIETA' COOP.  NUOVI ORIZZONTI ARL;6935897345;SALDO Fatt.n. 32/P.A.  del 18/09/2017 SERVIZIO DI ASSISTENZA DOMICILIARE RIVOLTO AGLI ANZIANI, AI DIVERSAMENTE ABILI, AI MINORI ED AI NUCLEI FAMILIARI IN CONDIZIONI DI DISAGIO. - ANNO 2017 VERBALE DI AFFIDAMENTO PER L'ESECUZIONE D'URGENZA;16/10/2017;1878;2;329;1;Spese correnti;3;Acquisto di beni e servizi;2;Acquisto di servizi;15;Contratti di servizio pubblico;9;Contratti di servizio di assistenza sociale domiciliare;16/10/2017
1634;2;6.340,48;6.340,47;SOCIETA' COOP.  NUOVI ORIZZONTI ARL;6935897345;SALDO Fatt.n. 32/P.A.  del 18/09/2017 SERVIZIO DI ASSISTENZA DOMICILIARE RIVOLTO AGLI ANZIANI, AI DIVERSAMENTE ABILI, AI MINORI ED AI NUCLEI FAMILIARI IN CONDIZIONI DI DISAGIO. - ANNO 2017 VERBALE DI AFFIDAMENTO PER L'ESECUZIONE D'URGENZA;16/10/2017;1878;2;329;1;Spese correnti;3;Acquisto di beni e servizi;2;Acquisto di servizi;15;Contratti di servizio pubblico;9;Contratti di servizio di assistenza sociale domiciliare;16/10/2017
1635;1;52,25;52,25;GAS NATURALVENDITA ITALIA SPA; ;SALDO Fatt.n. FI17366000007637  del 22/09/2017 CANONE E CONSUMI GAS METANO 25/08-22/09/2017;16/10/2017;6160;3;433;1;Spese correnti;3;Acquisto di beni e servizi;2;Acquisto di servizi;5;Utenze e canoni;6;Gas;19/10/2017
1636;1;115,12;1.717,54;SCAFIDI GIUSEPPE;ZCB17E106E;SALDO Fatt.n. 000038-2017-FE  del 25/09/2017 RIFERIMENTO PREVENTIVO N.51/2017 DEL 20/07/2017 SU FIAT PANDA TG BE181ZH;16/10/2017;6070;5;512;1;Spese correnti;3;Acquisto di beni e servizi;2;Acquisto di servizi;9;Manutenzione ordinaria e riparazioni;1;Manutenzione ordinaria e riparazioni di mezzi di trasporto ad uso civile, di sicurezza e ordine pubblico;16/10/2017
1636;2;1.601,42;1.717,54;SCAFIDI GIUSEPPE;ZCB17E106E;SALDO Fatt.n. 000037-2017-FE  del 19/09/2017 RIFERIMENTO PREVENTIVO N.54/2017 DEL 31/07/2017 SU AUTOBOTTE TG ME394965;16/10/2017;6070;5;512;1;Spese correnti;3;Acquisto di beni e servizi;2;Acquisto di servizi;9;Manutenzione ordinaria e riparazioni;1;Manutenzione ordinaria e riparazioni di mezzi di trasporto ad uso civile, di sicurezza e ordine pubblico;16/10/2017
1637;1;1.391,60;1.391,60;SCAFIDI GIUSEPPE;ZC417E0C95;SALDO Fatt.n. 000036-2017-FE  del 19/09/2017 RIFERIMENTO PREVENTIVO 52/2017 DEL 31/07/2017 SU IVECO DAILY TG CW015TH;16/10/2017;6070;9;407;1;Spese correnti;3;Acquisto di beni e servizi;2;Acquisto di servizi;9;Manutenzione ordinaria e riparazioni;1;Manutenzione ordinaria e riparazioni di mezzi di trasporto ad uso civile, di sicurezza e ordine pubblico;16/10/2017
1638;1;517,63;1.143,33;SCAFIDI GIUSEPPE;ZC417E0C95;SALDO Fatt.n. 000040-2017-FE  del 25/09/2017 RIFERIMENTO PREVENTIVO 55/2017 DEL 01/08/2017 SU FIAT PANDA TG BE181ZH;16/10/2017;6070;5;405;1;Spese correnti;3;Acquisto di beni e servizi;2;Acquisto di servizi;9;Manutenzione ordinaria e riparazioni;1;Manutenzione ordinaria e riparazioni di mezzi di trasporto ad uso civile, di sicurezza e ordine pubblico;16/10/2017
1638;2;627,7;1.143,33;SCAFIDI GIUSEPPE;ZC417E0C95;SALDO Fatt.n. 000039-2017-FE  del 25/09/2017 RIFERIMENTO PREVENTIVO 47/2017 DEL 20/07/2017 SU MITSUBISHI PIK UP TG CN190JJ;16/10/2017;6070;5;405;1;Spese correnti;3;Acquisto di beni e servizi;2;Acquisto di servizi;9;Manutenzione ordinaria e riparazioni;1;Manutenzione ordinaria e riparazioni di mezzi di trasporto ad uso civile, di sicurezza e ordine pubblico;16/10/2017
1639;1;1.570,14;1.570,14;Wind Tre S.p.A.; ;SALDO Fatt.n. 2017E000000908  del 21/01/2017 canoni e utenze telefonia mobile 01/01-28/02/2017;16/10/2017;6040;5;426;1;Spese correnti;3;Acquisto di beni e servizi;2;Acquisto di servizi;5;Utenze e canoni;1;Telefonia fissa;16/10/2017
1640;1;350;1.400,00;ASPA GAETANO; ;ATTUAZIONE PROGETTO LAVORI SOCIALMENTE UTILI 13/09-12/10/2017;16/10/2017;1900;0;268;1;Spese correnti;4;Trasferimenti correnti;2;Trasferimenti correnti a Famiglie;1;Interventi previdenziali;999;Altri sussidi e assegni;16/10/2017
1640;2;350;1.400,00;CAFFARELLI FIORENTINO; ;ATTUAZIONE PROGETTO LAVORI SOCIALMENTE UTILI 13/09-12/10/2017;16/10/2017;1900;0;268;1;Spese correnti;4;Trasferimenti correnti;2;Trasferimenti correnti a Famiglie;1;Interventi previdenziali;999;Altri sussidi e assegni;17/10/2017
1640;3;350;1.400,00;GULLOTTI ANTONINO; ;ATTUAZIONE PROGETTO LAVORI SOCIALMENTE UTILI 13/09-12/10/2017;16/10/2017;1900;0;268;1;Spese correnti;4;Trasferimenti correnti;2;Trasferimenti correnti a Famiglie;1;Interventi previdenziali;999;Altri sussidi e assegni;16/10/2017
1640;4;350;1.400,00;SCAFFIDI BENEDETTO; ;ATTUAZIONE PROGETTO LAVORI SOCIALMENTE UTILI 13/09-12/10/2017;16/10/2017;1900;0;268;1;Spese correnti;4;Trasferimenti correnti;2;Trasferimenti correnti a Famiglie;1;Interventi previdenziali;999;Altri sussidi e assegni;16/10/2017
1699;1;6.812,99;6.812,99;LA TECNICA DI MONDELLO SANTI;Z4C1CCAAAD;SALDO Fatt.n. FATTPA 29_17  del 22/08/2017 MANUTENZIONE IMP. DEPURAZIONE ARABITE  01/01/17-30/06/2017;19/10/2017;1577;1;487;1;Spese correnti;3;Acquisto di beni e servizi;2;Acquisto di servizi;9;Manutenzione ordinaria e riparazioni;11;Manutenzione ordinaria e riparazioni di altri beni materiali;19/10/2017
1700;1;201,3;805,2;PARAVIA ELEVATORS SERVICE SRL;Z20198671B;SALDO Fatt.n. 20171400081  del 03/08/2017 CANONE MANUTENZIONE 01/01-31/03/2017;19/10/2017;3010;3;126;2;Spese in conto capitale;2;Investimenti fissi lordi e acquisto di terreni;1;Beni materiali;9;Beni immobili;1;Fabbricati ad uso abitativo;19/10/2017
1700;2;604,9;805,2;PARAVIA ELEVATORS SERVICE SRL;Z20198671B;SALDO Fatt.n. 20171400080  del 03/08/2017 CANONE MANUTENZIONE 01/04/16-31/12/2016;19/10/2017;3010;3;126;2;Spese in conto capitale;2;Investimenti fissi lordi e acquisto di terreni;1;Beni materiali;9;Beni immobili;1;Fabbricati ad uso abitativo;19/10/2017
1703;1;12.469,29;12.469,29;SICULA TRASPORTI S.R.L.;6150991658;SALDO Fatt.n. 1679/03  del 31/08/2017 CONFERIMENTO RIFIUTI AGO.2017;23/10/2017;1743;0;308;1;Spese correnti;3;Acquisto di beni e servizi;2;Acquisto di servizi;15;Contratti di servizio pubblico;5;Contratti di servizio per il conferimento in discarica dei rifiuti;23/10/2017
1704;1;399,49;399,49;ENEL ENERGIA SPA; ;SALDO Fatt.n. 004801403630  del 12/10/2017 FATT. SETT.2017;23/10/2017;6030;5;412;1;Spese correnti;3;Acquisto di beni e servizi;2;Acquisto di servizi;5;Utenze e canoni;4;Energia elettrica;23/10/2017
1705;1;213,62;5.688,13;ENEL ENERGIA SPA; ;SALDO Fatt.n. 004801403628  del 12/10/2017 FATT. I.P. SETT.2017;23/10/2017;6030;12;419;1;Spese correnti;3;Acquisto di beni e servizi;2;Acquisto di servizi;5;Utenze e canoni;4;Energia elettrica;23/10/2017
1705;2;5.476,51;5.688,13;ENEL ENERGIA SPA; ;SALDO Fatt.n. 004801403629  del 12/10/2017 FATT. I.P. SETT.2017;23/10/2017;6030;12;419;1;Spese correnti;3;Acquisto di beni e servizi;2;Acquisto di servizi;5;Utenze e canoni;4;Energia elettrica;23/10/2017
1706;1;1.219,17;1.219,17;R.G.A. SECURITY S.R.L.;ZF81FCC79A;SALDO Fatt.n. 23/D  del 22/09/2017 Revisione estintori;23/10/2017;4035;1;300;2;Spese in conto capitale;2;Investimenti fissi lordi e acquisto di terreni;1;Beni materiali;9;Beni immobili;13;Altre vie di comunicazione;23/10/2017
1707;1;122,51;122,51;SCAFIDI GIUSEPPE;ZC417E0C95;Fatt.n. 000045-2017-FE del 28/09/2017 RIFERIMENTO PREVENTIVO 53/2017 DEL 31/07/2017 SU FIAT STILO TG CS789CA;23/10/2017;6070;1;402;1;Spese correnti;3;Acquisto di beni e servizi;2;Acquisto di servizi;9;Manutenzione ordinaria e riparazioni;1;Manutenzione ordinaria e riparazioni di mezzi di trasporto ad uso civile, di sicurezza e ordine pubblico;23/10/2017
1708;1;342,26;342,26;SCAFIDI GIUSEPPE;ZC417E0C95;Fatt.n. 000042-2017-FE del 27/09/2017 RIFERIMENTO PREVENTIVO 56/2017 DEL 01/08/2017 SU SUZUKI TG CN409JZ;23/10/2017;6070;4;404;1;Spese correnti;3;Acquisto di beni e servizi;2;Acquisto di servizi;9;Manutenzione ordinaria e riparazioni;1;Manutenzione ordinaria e riparazioni di mezzi di trasporto ad uso civile, di sicurezza e ordine pubblico;23/10/2017
1709;1;102,66;756,8;SCAFIDI GIUSEPPE;ZC417E0C95;Fatt.n. 000041-2017-FE del 27/09/2017 RIFERIMENTO PREVENTIVO 46/2017 DEL 20/07/2017 SU FIAT PANDA TG BE181ZH;23/10/2017;6070;5;405;1;Spese correnti;3;Acquisto di beni e servizi;2;Acquisto di servizi;9;Manutenzione ordinaria e riparazioni;1;Manutenzione ordinaria e riparazioni di mezzi di trasporto ad uso civile, di sicurezza e ordine pubblico;23/10/2017
1709;2;654,14;756,8;SCAFIDI GIUSEPPE;ZC417E0C95;Fatt.n. 000043-2017-FE del 27/09/2017 RIFERIMENTO PREVENTIVO 44/2017 DEL 20/07/2017 SU AUTOBOTTE TG ME394965;23/10/2017;6070;5;405;1;Spese correnti;3;Acquisto di beni e servizi;2;Acquisto di servizi;9;Manutenzione ordinaria e riparazioni;1;Manutenzione ordinaria e riparazioni di mezzi di trasporto ad uso civile, di sicurezza e ordine pubblico;23/10/2017
1710;1;367,56;367,56;SCAFIDI GIUSEPPE;ZC417E0C95;Fatt.n. 000044-2017-FE del 28/09/2017 RIFERIMENTO PREVENTIVO 45/2017 DEL 20/07/2017 SU FIAT IVECO DAILY TG CT914ML;23/10/2017;6070;9;407;1;Spese correnti;3;Acquisto di beni e servizi;2;Acquisto di servizi;9;Manutenzione ordinaria e riparazioni;1;Manutenzione ordinaria e riparazioni di mezzi di trasporto ad uso civile, di sicurezza e ordine pubblico;23/10/2017
1715;1;856,71;856,71;SIAE; ;SALDO Fatt.n. 1617031153  del 02/10/2017 DIRITTI SIAE SPETTACOLI MUSICA LEGGERA;27/10/2017;2000;1;292;1;Spese correnti;3;Acquisto di beni e servizi;2;Acquisto di servizi;2;Organizzazione eventi, pubblicita` e servizi per trasferta;5;Organizzazione e partecipazione a manifestazioni e convegni;27/10/2017
1716;1;0,01;6.340,47;SOCIETA' COOP.  NUOVI ORIZZONTI ARL;6935897345;SALDO Fatt.n. 36/P.A.  del 03/10/2017 SERVIZIO DI ASSISTENZA DOMICILIARE RIVOLTO AGLI ANZIANI, AI DIVERSAMENTE ABILI, AI MINORI ED AI NUCLEI FAMILIARI IN CONDIZIONI DI DISAGIO. - ANNO 2017 VERBALE DI AFFIDAMENTO PER L'ESECUZIONE D'URGENZA;27/10/2017;1878;2;329;1;Spese correnti;3;Acquisto di beni e servizi;2;Acquisto di servizi;15;Contratti di servizio pubblico;9;Contratti di servizio di assistenza sociale domiciliare;27/10/2017
1716;2;6.340,48;6.340,47;SOCIETA' COOP.  NUOVI ORIZZONTI ARL;6935897345;SALDO Fatt.n. 36/P.A.  del 03/10/2017 SERVIZIO DI ASSISTENZA DOMICILIARE RIVOLTO AGLI ANZIANI, AI DIVERSAMENTE ABILI, AI MINORI ED AI NUCLEI FAMILIARI IN CONDIZIONI DI DISAGIO. - ANNO 2017 VERBALE DI AFFIDAMENTO PER L'ESECUZIONE D'URGENZA;27/10/2017;1878;2;329;1;Spese correnti;3;Acquisto di beni e servizi;2;Acquisto di servizi;15;Contratti di servizio pubblico;9;Contratti di servizio di assistenza sociale domiciliare;27/10/2017
1717;1;677,3;677,3;HALLEY SUD SRL;Z001C8D941;ACCONTO Fatt.n. 201700480  del 03/10/2017 Canone di assistenza Software dal 01/07/2017 al 30/09/2017;27/10/2017;2100;2;496;1;Spese correnti;3;Acquisto di beni e servizi;2;Acquisto di servizi;19;Servizi informatici e di telecomunicazioni;2;Assistenza all'utente e formazione;27/10/2017
1718;1;1.500,40;1.500,40;HALLEY SUD SRL;Z001C8D941;SALDO Fatt.n. 201700480  del 03/10/2017 Canone di assistenza Software dal 01/07/2017 al 30/09/2017;27/10/2017;2100;6;348;1;Spese correnti;3;Acquisto di beni e servizi;2;Acquisto di servizi;19;Servizi informatici e di telecomunicazioni;5;Servizi per i sistemi e relativa manutenzione;27/10/2017
1724;1;7.571,80;7.571,80;FRANCO MASSIMO;Z3F1EB84C5;SALDO Fatt.n. 000001-2017-FE  del 12/10/2017 FRAZIONAMENTO TERRENI A SEGUITO ESPROPRIO LAVORI CONSOLIDAMENTO CENTRO ABITATO - DETERMINA N.14/2017 DEL 23/05/2017;31/10/2017;5276;1;160;2;Spese in conto capitale;2;Investimenti fissi lordi e acquisto di terreni;1;Beni materiali;9;Beni immobili;13;Altre vie di comunicazione;02/11/2017
1725;1;2.168,10;4.746,06;Pi.Eco S.r.l.;Z1D1B9D2D9;SALDO Fatt.n. 165  del 30/09/2017 conferimento rifiuti biodegradabili luglio 2017;31/10/2017;1743;0;311;1;Spese correnti;3;Acquisto di beni e servizi;2;Acquisto di servizi;15;Contratti di servizio pubblico;5;Contratti di servizio per il conferimento in discarica dei rifiuti;02/11/2017
1725;2;2.578,96;4.746,06;Pi.Eco S.r.l.;Z1D1B9D2D9;SALDO Fatt.n. 166  del 30/09/2017 conferimento rifiuti biodegradabili agosto 2017;31/10/2017;1743;0;311;1;Spese correnti;3;Acquisto di beni e servizi;2;Acquisto di servizi;15;Contratti di servizio pubblico;5;Contratti di servizio per il conferimento in discarica dei rifiuti;02/11/2017
1726;1;2.376,80;2.376,80;HALLEY CONSULTING;ZE91C8D94E;ACCONTO Fatt.n. 20171349  del 02/10/2017 FATTURA ELETTRONICA;31/10/2017;2100;1;346;1;Spese correnti;3;Acquisto di beni e servizi;2;Acquisto di servizi;19;Servizi informatici e di telecomunicazioni;5;Servizi per i sistemi e relativa manutenzione;02/11/2017
1727;1;510,5;510,5;HALLEY CONSULTING;ZE91C8D94E;SALDO Fatt.n. 20171349  del 02/10/2017 FATTURA ELETTRONICA;31/10/2017;2100;2;347;1;Spese correnti;3;Acquisto di beni e servizi;2;Acquisto di servizi;19;Servizi informatici e di telecomunicazioni;5;Servizi per i sistemi e relativa manutenzione;02/11/2017
1728;1;1.000,00;1.000,00;ASSOCIAZIONE FRATERNITA' MISERICORDIA; ;ATTIVITA' LUDICO EDUCATIVE IN FAVORE DI MINORI;31/10/2017;1878;16;207;1;Spese correnti;3;Acquisto di beni e servizi;1;Acquisto di beni;2;Altri beni di consumo;999;Altri beni e materiali di consumo n.a.c.;02/11/2017
1729;1;11.000,00;11.000,00;ASSOCIAZIONE FRATERNITA' MISERICORDIA; ;ATTIVITA' LUDICO EDUCATIVE IN FAVORE DI MINORI;31/10/2017;1910;0;208;1;Spese correnti;3;Acquisto di beni e servizi;2;Acquisto di servizi;99;Altri servizi;999;Altri servizi diversi n.a.c.;02/11/2017
1730;1;21.408,24;21.408,24;COMUNE DI MONTALBANO ELICONA; ;Convenzione servizio in forma associata Segreteria Comunale gen./giu.2017;31/10/2017;1026;0;294;1;Spese correnti;4;Trasferimenti correnti;1;Trasferimenti correnti a Amministrazioni Pubbliche;2;Trasferimenti correnti a Amministrazioni Locali;3;Trasferimenti correnti a Comuni;02/11/2017
1731;1;6.000,00;6.000,00;COMUNE DI LIBRIZZI; ;GESTIONE ASSOCIATA IMP. DEPURAZIONE MURMARI - GIU.2017-MAG.2018;31/10/2017;1577;2;537;1;Spese correnti;3;Acquisto di beni e servizi;2;Acquisto di servizi;9;Manutenzione ordinaria e riparazioni;11;Manutenzione ordinaria e riparazioni di altri beni materiali;02/11/2017
1732;1;1.023,18;1.023,18;COMUNE DI LIBRIZZI; ;gestione associata imp. depurazione murmari  - GIU.2017-MAG.2018;31/10/2017;1577;2;587;1;Spese correnti;3;Acquisto di beni e servizi;2;Acquisto di servizi;9;Manutenzione ordinaria e riparazioni;11;Manutenzione ordinaria e riparazioni di altri beni materiali;02/11/2017
1733;1;6.540,37;6.540,37;UNICREDIT-CASSA REG.LE MESSINA; ;CANONI DEMANIALI ACQUE PUBBLICHE ANNO 2014;31/10/2017;1685;0;530;1;Spese correnti;3;Acquisto di beni e servizi;2;Acquisto di servizi;7;Utilizzo di beni di terzi;999;Altre spese sostenute per utilizzo di beni di terzi n.a.c.;06/11/2017
1734;1;6.540,37;6.540,37;UNICREDIT-CASSA REG.LE MESSINA; ;CANONI DEMANIALI ACQUE PUBBLICHE ANNO 2015;31/10/2017;1685;0;531;1;Spese correnti;3;Acquisto di beni e servizi;2;Acquisto di servizi;7;Utilizzo di beni di terzi;999;Altre spese sostenute per utilizzo di beni di terzi n.a.c.;06/11/2017
1735;1;6.540,37;6.540,37;UNICREDIT-CASSA REG.LE MESSINA; ;canoni demaniali acque pubbliche anno 2016;31/10/2017;1685;0;477;1;Spese correnti;3;Acquisto di beni e servizi;2;Acquisto di servizi;7;Utilizzo di beni di terzi;999;Altre spese sostenute per utilizzo di beni di terzi n.a.c.;06/11/2017
1736;1;5,9;3.060,08;TELECOM ITALIA S.P.A.; ;Fatt.n. 8A00825577 del 05/10/2017 6BIM 2017;31/10/2017;6040;5;426;1;Spese correnti;3;Acquisto di beni e servizi;2;Acquisto di servizi;5;Utenze e canoni;1;Telefonia fissa;06/11/2017
1736;2;74,49;3.060,08;TELECOM ITALIA S.P.A.; ;Fatt.n. 8V00516144 del 05/10/2017 6BIM 2017;31/10/2017;6040;5;426;1;Spese correnti;3;Acquisto di beni e servizi;2;Acquisto di servizi;5;Utenze e canoni;1;Telefonia fissa;06/11/2017
1736;3;389,92;3.060,08;TELECOM ITALIA S.P.A.; ;Fatt.n. 8V00515075 del 05/10/2017 6BIM 2017;31/10/2017;6040;5;426;1;Spese correnti;3;Acquisto di beni e servizi;2;Acquisto di servizi;5;Utenze e canoni;1;Telefonia fissa;06/11/2017
1736;4;793;3.060,08;TELECOM ITALIA S.P.A.; ;Fatt.n. 8V00516421 del 05/10/2017 6BIM 2017;31/10/2017;6040;5;426;1;Spese correnti;3;Acquisto di beni e servizi;2;Acquisto di servizi;5;Utenze e canoni;1;Telefonia fissa;06/11/2017
1736;5;833,35;3.060,08;TELECOM ITALIA S.P.A.; ;Fatt.n. 8V00515981 del 05/10/2017 6BIM 2017;31/10/2017;6040;5;426;1;Spese correnti;3;Acquisto di beni e servizi;2;Acquisto di servizi;5;Utenze e canoni;1;Telefonia fissa;06/11/2017
1736;6;965,42;3.060,08;TELECOM ITALIA S.P.A.; ;Fatt.n. 4220917800011252 del 05/10/2017 6BIM 2017;31/10/2017;6040;5;426;1;Spese correnti;3;Acquisto di beni e servizi;2;Acquisto di servizi;5;Utenze e canoni;1;Telefonia fissa;06/11/2017
1737;1;76,3;204,96;TELECOM ITALIA S.P.A.; ;Fatt.n. 8V00514600 del 05/10/2017 6BIM 2017;31/10/2017;6040;6;427;1;Spese correnti;3;Acquisto di beni e servizi;2;Acquisto di servizi;5;Utenze e canoni;1;Telefonia fissa;06/11/2017
1737;2;128,66;204,96;TELECOM ITALIA S.P.A.; ;Fatt.n. 4220917800011244 del 05/10/2017 6BIM 2017;31/10/2017;6040;6;427;1;Spese correnti;3;Acquisto di beni e servizi;2;Acquisto di servizi;5;Utenze e canoni;1;Telefonia fissa;06/11/2017
1738;1;76,3;170,91;TELECOM ITALIA S.P.A.; ;Fatt.n. 8V00515798 del 05/10/2017 6BIM 2017;31/10/2017;6040;10;429;1;Spese correnti;3;Acquisto di beni e servizi;2;Acquisto di servizi;5;Utenze e canoni;1;Telefonia fissa;06/11/2017
1738;2;94,61;170,91;TELECOM ITALIA S.P.A.; ;Fatt.n. 4220917800011252 del 05/10/2017 6BIM 2017;31/10/2017;6040;10;429;1;Spese correnti;3;Acquisto di beni e servizi;2;Acquisto di servizi;5;Utenze e canoni;1;Telefonia fissa;06/11/2017
1741;1;3.475,24;3.475,24;LOPRESTI MARIA GABRIELLA; ;SALDO Fatt.n. 15/E  del 18/10/2017 COMPENSO REVISORE DEI CONTI 01/04-30/09/2017;02/11/2017;1046;0;115;1;Spese correnti;3;Acquisto di beni e servizi;2;Acquisto di servizi;1;Organi e incarichi istituzionali dell'amministrazione;1;Organi istituzionali dell'amministrazione - Indennità;02/11/2017
1742;1;74,98;74,98;LOPRESTI MARIA GABRIELLA; ;ACCONTO Fatt.n. 16/E  del 18/10/2017 RIMBORSO N.6 VIAGGI REVISORE DEI CONTI;02/11/2017;1046;0;158;1;Spese correnti;3;Acquisto di beni e servizi;2;Acquisto di servizi;1;Organi e incarichi istituzionali dell'amministrazione;1;Organi istituzionali dell'amministrazione - Indennità;02/11/2017
1743;1;248,38;248,38;LOPRESTI MARIA GABRIELLA; ;SALDO Fatt.n. 16/E  del 18/10/2017 RIMBORSO N.6 VIAGGI REVISORE DEI CONTI;02/11/2017;1046;0;115;1;Spese correnti;3;Acquisto di beni e servizi;2;Acquisto di servizi;1;Organi e incarichi istituzionali dell'amministrazione;1;Organi istituzionali dell'amministrazione - Indennità;02/11/2017
1746;1;150;150;ECONOMO COMUNALE; ;RIMBORSO SPESE ECONOMATO PER REALIZZAZIONE SPETTACOLI ESTATE 2017;02/11/2017;2000;1;216;1;Spese correnti;3;Acquisto di beni e servizi;2;Acquisto di servizi;2;Organizzazione eventi, pubblicita` e servizi per trasferta;5;Organizzazione e partecipazione a manifestazioni e convegni;02/11/2017
1747;1;-49,8;850,34;C.M.C. SRL;ZD01F808CE;SALDO Fatt.n. 38/PA  del 17/10/2017;02/11/2017;2063;0;202;2;Spese in conto capitale;2;Investimenti fissi lordi e acquisto di terreni;1;Beni materiali;5;Attrezzature;999;Attrezzature n.a.c.;02/11/2017
1747;2;899,14;850,34;C.M.C. SRL;ZD01F808CE;SALDO Fatt.n. 23/PA  del 30/08/2017 VERNICE PER SEGNALETICA STRADALE;02/11/2017;2063;0;202;2;Spese in conto capitale;2;Investimenti fissi lordi e acquisto di terreni;1;Beni materiali;5;Attrezzature;999;Attrezzature n.a.c.;02/11/2017
1749;1;1.518,37;2.126,72;FIORE SALVATORE VITTORIO; ;indennita' funzione ottobre 2017;03/11/2017;1001;0;42;1;Spese correnti;3;Acquisto di beni e servizi;2;Acquisto di servizi;1;Organi e incarichi istituzionali dell'amministrazione;1;Organi istituzionali dell'amministrazione - Indennità;03/11/2017
1749;2;152,83;2.126,72;INTERDONATO ARMANDO; ;indennita' funzione ottobre 2017;03/11/2017;1001;0;42;1;Spese correnti;3;Acquisto di beni e servizi;2;Acquisto di servizi;1;Organi e incarichi istituzionali dell'amministrazione;1;Organi istituzionali dell'amministrazione - Indennità;03/11/2017
1749;3;228,76;2.126,72;LAMANCUSA MARCO; ;indennita' funzione ottobre 2017;03/11/2017;1001;0;42;1;Spese correnti;3;Acquisto di beni e servizi;2;Acquisto di servizi;1;Organi e incarichi istituzionali dell'amministrazione;1;Organi istituzionali dell'amministrazione - Indennità;03/11/2017
1749;4;228,76;2.126,72;PETTINATO  ROSA SANDRA; ;indennita' funzione ottobre 2017;03/11/2017;1001;0;42;1;Spese correnti;3;Acquisto di beni e servizi;2;Acquisto di servizi;1;Organi e incarichi istituzionali dell'amministrazione;1;Organi istituzionali dell'amministrazione - Indennità;03/11/2017
1750;1;228,76;228,76;FORZANO GIUSEPPE; ;Indennita' funzione Presidente Consiglio ottobre 2017;03/11/2017;1001;0;42;1;Spese correnti;3;Acquisto di beni e servizi;2;Acquisto di servizi;1;Organi e incarichi istituzionali dell'amministrazione;1;Organi istituzionali dell'amministrazione - Indennità;03/11/2017
1751;1;3.000,00;3.000,00;ASS. ANFFAS ONLUS PATTI; ;ACCORDO ANFFAS ACCOGLIENZA E SUPPORTO DISABILI  ANNO 2017-saldo;03/11/2017;1888;0;163;1;Spese correnti;4;Trasferimenti correnti;1;Trasferimenti correnti a Amministrazioni Pubbliche;2;Trasferimenti correnti a Amministrazioni Locali;3;Trasferimenti correnti a Comuni;03/11/2017
1752;1;689,48;689,48;ORIFICI CARMELO-MARTINO CARMELA; ;canone locazione OTT./NOV. 2017;03/11/2017;2230;0;118;1;Spese correnti;3;Acquisto di beni e servizi;2;Acquisto di servizi;7;Utilizzo di beni di terzi;5;Fitti di terreni e giacimenti;03/11/2017
1756;1;127,2;127,2;GAS NATURALVENDITA ITALIA SPA; ;Fatt.n. FI17366000008458 del 24/10/2017 GAS METANO 24/05-24/10/17;07/11/2017;6160;0;430;1;Spese correnti;3;Acquisto di beni e servizi;2;Acquisto di servizi;5;Utenze e canoni;6;Gas;10/11/2017
1757;1;68,13;68,13;GAS NATURALVENDITA ITALIA SPA; ;Fatt.n. FI17366000008457 del 24/10/2017 GAS METANO 25/05-24/10/2017;07/11/2017;6160;1;431;1;Spese correnti;3;Acquisto di beni e servizi;2;Acquisto di servizi;5;Utenze e canoni;999;Utenze e canoni per altri servizi n.a.c.;10/11/2017
1758;1;32,75;32,75;GAS NATURALVENDITA ITALIA SPA; ;Fatt.n. FI17366000008294 del 24/10/2017 GAS METANO 25/08-24/10/17;07/11/2017;6160;2;432;1;Spese correnti;3;Acquisto di beni e servizi;2;Acquisto di servizi;5;Utenze e canoni;999;Utenze e canoni per altri servizi n.a.c.;10/11/2017
1759;1;58,62;58,62;GAS NATURALVENDITA ITALIA SPA; ;Fatt.n. FI17366000008639 del 24/10/2017 GAS METANO 04/08-24/10/17;07/11/2017;6160;3;433;1;Spese correnti;3;Acquisto di beni e servizi;2;Acquisto di servizi;5;Utenze e canoni;6;Gas;10/11/2017
1760;1;250;250;TETRALAB S.R.L.;Z0F1E11DA0;SALDO Fatt.n. 000011-2017-E  del 23/10/2017 VS DARE PER PRESTAZIONI DI SERVIZIO ANALISI MONITORAGGIO SALUBRITA' IMP. IDRICO;07/11/2017;1578;0;61;1;Spese correnti;3;Acquisto di beni e servizi;2;Acquisto di servizi;10;Consulenze;1;Incarichi libero professionali di studi, ricerca e consulenza;07/11/2017
1761;1;750;750;TETRALAB S.R.L.;Z0F1E11DA0;SALDO Fatt.n. 000010-2017-E  del 23/10/2017 VS DARE PER PRESTAZIONI DI SERVIZIO ANALISI MONITORAGGIO SALUBRITA' IMP. IDRICO;07/11/2017;1578;0;69;1;Spese correnti;3;Acquisto di beni e servizi;2;Acquisto di servizi;10;Consulenze;1;Incarichi libero professionali di studi, ricerca e consulenza;07/11/2017
1762;1;8.397,10;8.397,10;SICULA TRASPORTI S.R.L.;6150991658;SALDO Fatt.n. 1879/03  del 30/09/2017 TRASPORTRO RR.SS.UU. IN DISCARICA SETT.2017;07/11/2017;1743;0;320;1;Spese correnti;3;Acquisto di beni e servizi;2;Acquisto di servizi;15;Contratti di servizio pubblico;5;Contratti di servizio per il conferimento in discarica dei rifiuti;07/11/2017
1764;1;26,95;26,95;TESORIERE COMUNALE-CREDITO SICILIANO; ;TELEPASS OTTOBRE 2017;08/11/2017;1017;0;38;1;Spese correnti;3;Acquisto di beni e servizi;2;Acquisto di servizi;99;Altri servizi;999;Altri servizi diversi n.a.c.;08/11/2017
1765;1;1.904,77;1.904,77;Pi.Eco S.r.l.;Z1D1B9D2D9;SALDO Fatt.n. 179  del 24/10/2017 CONFERIMENTO RIFIUTI BIODEGRADABILI SETT.2017;08/11/2017;1743;0;370;1;Spese correnti;3;Acquisto di beni e servizi;2;Acquisto di servizi;15;Contratti di servizio pubblico;5;Contratti di servizio per il conferimento in discarica dei rifiuti;08/11/2017
1766;1;209,52;209,52;KUWAIT PETROLEUM ITALIA S.P.A.;6516542493;Fatt.n. PJ00098625 del 30/09/2017 CARBURANTE AUTOMEZZI SETT.2017;08/11/2017;6080;2;25;1;Spese correnti;3;Acquisto di beni e servizi;1;Acquisto di beni;2;Altri beni di consumo;2;Carburanti, combustibili e lubrificanti;08/11/2017
1767;1;728,17;728,17;KUWAIT PETROLEUM ITALIA S.P.A.;6516542493;Fatt.n. PJ00098625 del 30/09/2017 CARBURANTE AUTOMEZZI SETT.2017;08/11/2017;6080;3;26;1;Spese correnti;3;Acquisto di beni e servizi;1;Acquisto di beni;2;Altri beni di consumo;2;Carburanti, combustibili e lubrificanti;08/11/2017
1768;1;712,2;712,2;KUWAIT PETROLEUM ITALIA S.P.A.;6516542493;Fatt.n. PJ00098625 del 30/09/2017 CARBURANTE AUTOMEZZI SETT.2017;08/11/2017;6080;4;27;1;Spese correnti;3;Acquisto di beni e servizi;1;Acquisto di beni;2;Altri beni di consumo;2;Carburanti, combustibili e lubrificanti;08/11/2017
1769;1;473,14;473,14;KUWAIT PETROLEUM ITALIA S.P.A.;6516542493;Fatt.n. PJ00098625 del 30/09/2017 CARBURANTE AUTOMEZZI SETT.2017;08/11/2017;6080;5;28;1;Spese correnti;3;Acquisto di beni e servizi;1;Acquisto di beni;2;Altri beni di consumo;2;Carburanti, combustibili e lubrificanti;08/11/2017
1770;1;79,63;79,63;KUWAIT PETROLEUM ITALIA S.P.A.;6516542493;Fatt.n. PJ00098625 del 30/09/2017 CARBURANTE AUTOMEZZI SETT.2017;08/11/2017;6080;7;29;1;Spese correnti;3;Acquisto di beni e servizi;1;Acquisto di beni;2;Altri beni di consumo;2;Carburanti, combustibili e lubrificanti;08/11/2017
1773;1;3.438,96;3.438,96;DPM S.R.L.;Z381FF7720;SALDO Fatt.n. FATTPA 3_17  del 24/10/2017 TRASPORTO E CONFERIMENTO RIFIUTI CIMITERIALI;10/11/2017;1744;0;288;1;Spese correnti;3;Acquisto di beni e servizi;2;Acquisto di servizi;15;Contratti di servizio pubblico;5;Contratti di servizio per il conferimento in discarica dei rifiuti;13/11/2017
1774;1;127,68;3.664,00;ABRAMO CATENA; ;ELEZIONE REGIONALI  DEL 5 NOV.2017 ONORARI COMPONENTI SEGGI;10/11/2017;1031;0;366;1;Spese correnti;3;Acquisto di beni e servizi;2;Acquisto di servizi;99;Altri servizi;4;Altre spese per consultazioni elettorali dell'ente;17/11/2017
1774;2;127,68;3.664,00;BARCHITTA CATENA; ;ELEZIONE REGIONALI  DEL 5 NOV.2017 ONORARI COMPONENTI SEGGI;10/11/2017;1031;0;366;1;Spese correnti;3;Acquisto di beni e servizi;2;Acquisto di servizi;99;Altri servizi;4;Altre spese per consultazioni elettorali dell'ente;17/11/2017
1774;3;127,68;3.664,00;BIONDO MARIA; ;ELEZIONE REGIONALI  DEL 5 NOV.2017 ONORARI COMPONENTI SEGGI;10/11/2017;1031;0;366;1;Spese correnti;3;Acquisto di beni e servizi;2;Acquisto di servizi;99;Altri servizi;4;Altre spese per consultazioni elettorali dell'ente;17/11/2017
1774;4;127,68;3.664,00;BRIGANDI' EVA; ;ELEZIONE REGIONALI  DEL 5 NOV.2017 ONORARI COMPONENTI SEGGI;10/11/2017;1031;0;366;1;Spese correnti;3;Acquisto di beni e servizi;2;Acquisto di servizi;99;Altri servizi;4;Altre spese per consultazioni elettorali dell'ente;17/11/2017
1774;5;156,92;3.664,00;DE LUCA EUGENIA; ;ELEZIONE REGIONALI  DEL 5 NOV.2017 ONORARI COMPONENTI SEGGI;10/11/2017;1031;0;366;1;Spese correnti;3;Acquisto di beni e servizi;2;Acquisto di servizi;99;Altri servizi;4;Altre spese per consultazioni elettorali dell'ente;17/11/2017
1774;6;127,68;3.664,00;DE LUCA ROBERTO; ;ELEZIONE REGIONALI  DEL 5 NOV.2017 ONORARI COMPONENTI SEGGI;10/11/2017;1031;0;366;1;Spese correnti;3;Acquisto di beni e servizi;2;Acquisto di servizi;99;Altri servizi;4;Altre spese per consultazioni elettorali dell'ente;17/11/2017
1774;7;127,68;3.664,00;DI BLASI ANTONINO; ;ELEZIONE REGIONALI  DEL 5 NOV.2017 ONORARI COMPONENTI SEGGI;10/11/2017;1031;0;366;1;Spese correnti;3;Acquisto di beni e servizi;2;Acquisto di servizi;99;Altri servizi;4;Altre spese per consultazioni elettorali dell'ente;17/11/2017
1774;8;127,68;3.664,00;DI DIO FRANCA; ;ELEZIONE REGIONALI  DEL 5 NOV.2017 ONORARI COMPONENTI SEGGI;10/11/2017;1031;0;366;1;Spese correnti;3;Acquisto di beni e servizi;2;Acquisto di servizi;99;Altri servizi;4;Altre spese per consultazioni elettorali dell'ente;17/11/2017
1774;9;127,68;3.664,00;GERMANA' AGOSTINO; ;ELEZIONE REGIONALI  DEL 5 NOV.2017 ONORARI COMPONENTI SEGGI;10/11/2017;1031;0;366;1;Spese correnti;3;Acquisto di beni e servizi;2;Acquisto di servizi;99;Altri servizi;4;Altre spese per consultazioni elettorali dell'ente;17/11/2017
1774;10;127,68;3.664,00;GORGONE ELISA; ;ELEZIONE REGIONALI  DEL 5 NOV.2017 ONORARI COMPONENTI SEGGI;10/11/2017;1031;0;366;1;Spese correnti;3;Acquisto di beni e servizi;2;Acquisto di servizi;99;Altri servizi;4;Altre spese per consultazioni elettorali dell'ente;17/11/2017
1774;11;127,68;3.664,00;GORGONE ERIKA; ;ELEZIONE REGIONALI  DEL 5 NOV.2017 ONORARI COMPONENTI SEGGI;10/11/2017;1031;0;366;1;Spese correnti;3;Acquisto di beni e servizi;2;Acquisto di servizi;99;Altri servizi;4;Altre spese per consultazioni elettorali dell'ente;17/11/2017
1774;12;127,68;3.664,00;LEONALDI FRANCESCA; ;ELEZIONE REGIONALI  DEL 5 NOV.2017 ONORARI COMPONENTI SEGGI;10/11/2017;1031;0;366;1;Spese correnti;3;Acquisto di beni e servizi;2;Acquisto di servizi;99;Altri servizi;4;Altre spese per consultazioni elettorali dell'ente;17/11/2017
1774;13;127,68;3.664,00;LO PRESTI GIOSUE'; ;ELEZIONE REGIONALI  DEL 5 NOV.2017 ONORARI COMPONENTI SEGGI;10/11/2017;1031;0;366;1;Spese correnti;3;Acquisto di beni e servizi;2;Acquisto di servizi;99;Altri servizi;4;Altre spese per consultazioni elettorali dell'ente;17/11/2017
1774;14;127,68;3.664,00;MACULA ANTONINO; ;ELEZIONE REGIONALI  DEL 5 NOV.2017 ONORARI COMPONENTI SEGGI;10/11/2017;1031;0;366;1;Spese correnti;3;Acquisto di beni e servizi;2;Acquisto di servizi;99;Altri servizi;4;Altre spese per consultazioni elettorali dell'ente;17/11/2017
1774;15;156,92;3.664,00;MARCHELLO CARMELITA CINZIA; ;ELEZIONE REGIONALI  DEL 5 NOV.2017 ONORARI COMPONENTI SEGGI;10/11/2017;1031;0;366;1;Spese correnti;3;Acquisto di beni e servizi;2;Acquisto di servizi;99;Altri servizi;4;Altre spese per consultazioni elettorali dell'ente;17/11/2017
1774;16;127,68;3.664,00;MONDELLO CARMELA; ;ELEZIONE REGIONALI  DEL 5 NOV.2017 ONORARI COMPONENTI SEGGI;10/11/2017;1031;0;366;1;Spese correnti;3;Acquisto di beni e servizi;2;Acquisto di servizi;99;Altri servizi;4;Altre spese per consultazioni elettorali dell'ente;17/11/2017
1774;17;156,92;3.664,00;NATOLI MASSIMO SANTI; ;ELEZIONE REGIONALI  DEL 5 NOV.2017 ONORARI COMPONENTI SEGGI;10/11/2017;1031;0;366;1;Spese correnti;3;Acquisto di beni e servizi;2;Acquisto di servizi;99;Altri servizi;4;Altre spese per consultazioni elettorali dell'ente;17/11/2017
1774;18;127,68;3.664,00;PROCOPIO MATTEO; ;ELEZIONE REGIONALI  DEL 5 NOV.2017 ONORARI COMPONENTI SEGGI;10/11/2017;1031;0;366;1;Spese correnti;3;Acquisto di beni e servizi;2;Acquisto di servizi;99;Altri servizi;4;Altre spese per consultazioni elettorali dell'ente;17/11/2017
1774;19;127,68;3.664,00;PUGLIA TANIA; ;ELEZIONE REGIONALI  DEL 5 NOV.2017 ONORARI COMPONENTI SEGGI;10/11/2017;1031;0;366;1;Spese correnti;3;Acquisto di beni e servizi;2;Acquisto di servizi;99;Altri servizi;4;Altre spese per consultazioni elettorali dell'ente;17/11/2017
1774;20;156,92;3.664,00;SALTAFOSSO FRANCA; ;ELEZIONE REGIONALI  DEL 5 NOV.2017 ONORARI COMPONENTI SEGGI;10/11/2017;1031;0;366;1;Spese correnti;3;Acquisto di beni e servizi;2;Acquisto di servizi;99;Altri servizi;4;Altre spese per consultazioni elettorali dell'ente;17/11/2017
1774;21;127,68;3.664,00;SCAFIDI VINCENZO; ;ELEZIONE REGIONALI  DEL 5 NOV.2017 ONORARI COMPONENTI SEGGI;10/11/2017;1031;0;366;1;Spese correnti;3;Acquisto di beni e servizi;2;Acquisto di servizi;99;Altri servizi;4;Altre spese per consultazioni elettorali dell'ente;17/11/2017
1774;22;127,68;3.664,00;SCAGLIONE ILENIA; ;ELEZIONE REGIONALI  DEL 5 NOV.2017 ONORARI COMPONENTI SEGGI;10/11/2017;1031;0;366;1;Spese correnti;3;Acquisto di beni e servizi;2;Acquisto di servizi;99;Altri servizi;4;Altre spese per consultazioni elettorali dell'ente;17/11/2017
1774;23;127,68;3.664,00;SCHEPISI FEDERICA; ;ELEZIONE REGIONALI  DEL 5 NOV.2017 ONORARI COMPONENTI SEGGI;10/11/2017;1031;0;366;1;Spese correnti;3;Acquisto di beni e servizi;2;Acquisto di servizi;99;Altri servizi;4;Altre spese per consultazioni elettorali dell'ente;17/11/2017
1774;24;127,68;3.664,00;SCHEPISI GIUSY; ;ELEZIONE REGIONALI  DEL 5 NOV.2017 ONORARI COMPONENTI SEGGI;10/11/2017;1031;0;366;1;Spese correnti;3;Acquisto di beni e servizi;2;Acquisto di servizi;99;Altri servizi;4;Altre spese per consultazioni elettorali dell'ente;17/11/2017
1774;25;127,68;3.664,00;STARVAGGI DEBORA; ;ELEZIONE REGIONALI  DEL 5 NOV.2017 ONORARI COMPONENTI SEGGI;10/11/2017;1031;0;366;1;Spese correnti;3;Acquisto di beni e servizi;2;Acquisto di servizi;99;Altri servizi;4;Altre spese per consultazioni elettorali dell'ente;17/11/2017
1774;26;127,68;3.664,00;TORNABENE MARIA; ;ELEZIONE REGIONALI  DEL 5 NOV.2017 ONORARI COMPONENTI SEGGI;10/11/2017;1031;0;366;1;Spese correnti;3;Acquisto di beni e servizi;2;Acquisto di servizi;99;Altri servizi;4;Altre spese per consultazioni elettorali dell'ente;17/11/2017
1774;27;127,68;3.664,00;TRICOLI CINZIA; ;ELEZIONE REGIONALI  DEL 5 NOV.2017 ONORARI COMPONENTI SEGGI;10/11/2017;1031;0;366;1;Spese correnti;3;Acquisto di beni e servizi;2;Acquisto di servizi;99;Altri servizi;4;Altre spese per consultazioni elettorali dell'ente;17/11/2017
1774;28;127,68;3.664,00;TRICOLI GIUSI; ;ELEZIONE REGIONALI  DEL 5 NOV.2017 ONORARI COMPONENTI SEGGI;10/11/2017;1031;0;366;1;Spese correnti;3;Acquisto di beni e servizi;2;Acquisto di servizi;99;Altri servizi;4;Altre spese per consultazioni elettorali dell'ente;17/11/2017
1776;1;18.215,29;36.431,58;PIZZO PIPPO;7140282B19;SALDO Fatt.n. 73|2017  del 19/10/2017 SERV. SPAZZAMNTO,RACCOLTA E TRASPORTO RRSSUU SETT.2017;13/11/2017;1744;0;297;1;Spese correnti;3;Acquisto di beni e servizi;2;Acquisto di servizi;15;Contratti di servizio pubblico;5;Contratti di servizio per il conferimento in discarica dei rifiuti;13/11/2017
1776;2;18.215,29;36.431,58;PIZZO PIPPO;7140282B19;SALDO Fatt.n. 84|2017  del 31/10/2017 SERV. SPAZZAMENTO,RACCOLTA E TRASPORTO RR.SS.UU. OTT.2017;13/11/2017;1744;0;297;1;Spese correnti;3;Acquisto di beni e servizi;2;Acquisto di servizi;15;Contratti di servizio pubblico;5;Contratti di servizio per il conferimento in discarica dei rifiuti;13/11/2017
1778;1;656,02;656,02;Xerox Spa;ZF21C92253;SALDO Fatt.n. 170012754 /G  del 02/11/2017 canone locazione fotocopiatori 01/08-31/10/17;14/11/2017;2110;3;436;1;Spese correnti;3;Acquisto di beni e servizi;2;Acquisto di servizi;7;Utilizzo di beni di terzi;8;Noleggi di impianti e macchinari;14/11/2017
1779;1;319,71;319,71;COMUNE DI PATTI; ;spese funzionamento c.e.circ. anno 2016;14/11/2017;1047;1;365;1;Spese correnti;4;Trasferimenti correnti;1;Trasferimenti correnti a Amministrazioni Pubbliche;2;Trasferimenti correnti a Amministrazioni Locali;3;Trasferimenti correnti a Comuni;14/11/2017
1780;1;0,01;6.340,47;SOCIETA' COOP.  NUOVI ORIZZONTI ARL;6935897345;SALDO Fatt.n. 42/P.A.  del 09/11/2017 SERVIZIO DI ASSISTENZA DOMICILIARE RIVOLTO AGLI ANZIANI, AI DIVERSAMENTE ABILI, AI MINORI ED AI NUCLEI FAMILIARI IN CONDIZIONI DI DISAGIO. - ANNO 2017 VERBALE DI AFFIDAMENTO PER L'ESECUZIONE D'URGENZA;14/11/2017;1878;2;329;1;Spese correnti;3;Acquisto di beni e servizi;2;Acquisto di servizi;15;Contratti di servizio pubblico;9;Contratti di servizio di assistenza sociale domiciliare;14/11/2017
1780;2;6.340,48;6.340,47;SOCIETA' COOP.  NUOVI ORIZZONTI ARL;6935897345;SALDO Fatt.n. 42/P.A.  del 09/11/2017 SERVIZIO DI ASSISTENZA DOMICILIARE RIVOLTO AGLI ANZIANI, AI DIVERSAMENTE ABILI, AI MINORI ED AI NUCLEI FAMILIARI IN CONDIZIONI DI DISAGIO. - ANNO 2017 VERBALE DI AFFIDAMENTO PER L'ESECUZIONE D'URGENZA;14/11/2017;1878;2;329;1;Spese correnti;3;Acquisto di beni e servizi;2;Acquisto di servizi;15;Contratti di servizio pubblico;9;Contratti di servizio di assistenza sociale domiciliare;14/11/2017
1781;1;5.221,82;5.221,82;SOCIETA' COOP.  NUOVI ORIZZONTI ARL;ZF61EOF9D7;SALDO Fatt.n. 43/P.A.  del 09/11/2017 INTERVENTI IN FAVORE DELLE PERSONE IN CONDIZIONE DI DISABILITA' GRAVISSIMA/2014;14/11/2017;1884;1;456;1;Spese correnti;4;Trasferimenti correnti;2;Trasferimenti correnti a Famiglie;1;Interventi previdenziali;999;Altri sussidi e assegni;14/11/2017
1783;1;5.637,70;5.637,70;LAMANCUSA MARIA; ;contributo prevenzione sismica;15/11/2017;4070;0;374;2;Spese in conto capitale;4;Altri trasferimenti in conto capitale;2;Altri trasferimenti in conto capitale per assunzione di debiti di Famiglie;1;Altri trasferimenti in conto capitale per assunzione di debiti di Famiglie;1;Altri trasferimenti in conto capitale per assunzione di debiti di Famiglie;15/11/2017
1786;1;350;1.400,00;CATALANO SIMONE; ;ATTUAZIONE PROGETTO LAVORI SOCIALMENTE UTILI PERIODO 16/10-14/11/2017;17/11/2017;1900;0;301;1;Spese correnti;4;Trasferimenti correnti;2;Trasferimenti correnti a Famiglie;1;Interventi previdenziali;999;Altri sussidi e assegni;17/11/2017
1786;2;350;1.400,00;SCHEPISI MAURIZIO; ;ATTUAZIONE PROGETTO LAVORI SOCIALMENTE UTILI PERIODO 16/10-14/11/2017;17/11/2017;1900;0;301;1;Spese correnti;4;Trasferimenti correnti;2;Trasferimenti correnti a Famiglie;1;Interventi previdenziali;999;Altri sussidi e assegni;17/11/2017
1786;3;350;1.400,00;STARVAGGI DANIELA; ;ATTUAZIONE PROGETTO LAVORI SOCIALMENTE UTILI PERIODO 16/10-14/11/2017;17/11/2017;1900;0;301;1;Spese correnti;4;Trasferimenti correnti;2;Trasferimenti correnti a Famiglie;1;Interventi previdenziali;999;Altri sussidi e assegni;17/11/2017
1786;4;350;1.400,00;VELEA CATALINA ANDREEA; ;ATTUAZIONE PROGETTO LAVORI SOCIALMENTE UTILI PERIODO 16/10-14/11/2017;17/11/2017;1900;0;301;1;Spese correnti;4;Trasferimenti correnti;2;Trasferimenti correnti a Famiglie;1;Interventi previdenziali;999;Altri sussidi e assegni;24/11/2017
1849;1;341,65;681,3;SCAFIDI GIUSEPPE;ZC417E0C95;SALDO Fatt.n. 000047-2017-FE  del 30/09/2017 RIFERIMENTO PREVENTIVO 77/2017 DEL 18/09//2017 SU SCUOLABUS IVECO DAILY TG CT914ML;21/11/2017;6070;9;407;1;Spese correnti;3;Acquisto di beni e servizi;2;Acquisto di servizi;9;Manutenzione ordinaria e riparazioni;1;Manutenzione ordinaria e riparazioni di mezzi di trasporto ad uso civile, di sicurezza e ordine pubblico;21/11/2017
1849;2;341,65;681,3;SCAFIDI GIUSEPPE;ZC417E0C95;SALDO Fatt.n. 000046-2017-FE  del 30/09/2017 RIFERIMENTO PREVENTIVO 76/2017 DEL 18/09//2017 SU SCUOLABUS IVECO DAILY TG CT940ML;21/11/2017;6070;9;407;1;Spese correnti;3;Acquisto di beni e servizi;2;Acquisto di servizi;9;Manutenzione ordinaria e riparazioni;1;Manutenzione ordinaria e riparazioni di mezzi di trasporto ad uso civile, di sicurezza e ordine pubblico;21/11/2017
1850;1;1.611,38;1.611,38;INTERDONATO GIACOMO S.N.C.; ;SALDO Fatt.n. 000002-2017-FE  del 02/11/2017 buoni libro a.s.2017/2018;21/11/2017;2000;10;378;1;Spese correnti;3;Acquisto di beni e servizi;2;Acquisto di servizi;99;Altri servizi;999;Altri servizi diversi n.a.c.;21/11/2017
1851;1;1.090,00;1.719,65;GIARDINA VIAGGI SRL;ZBA1FE4AD8;SALDO Fatt.n. 221E  del 07/11/2017 trasporto studenti ott.2017;21/11/2017;2000;9;280;1;Spese correnti;3;Acquisto di beni e servizi;2;Acquisto di servizi;15;Contratti di servizio pubblico;2;Contratti di servizio di trasporto scolastico;21/11/2017
1851;2;629,65;1.719,65;GIARDINA VIAGGI SRL;ZBA1FE4AD8;SALDO Fatt.n. 220E  del 07/11/2017 trasporto studenti sett.2017;21/11/2017;2000;9;280;1;Spese correnti;3;Acquisto di beni e servizi;2;Acquisto di servizi;15;Contratti di servizio pubblico;2;Contratti di servizio di trasporto scolastico;21/11/2017
1852;1;4.507,00;4.507,00;AZIENDA SICILIANA TRASPORTI;ZA81FE51C2;SALDO Fatt.n. 111/S4  del 16/10/2017 trasporto studenti sett.2017;21/11/2017;2000;9;279;1;Spese correnti;3;Acquisto di beni e servizi;2;Acquisto di servizi;15;Contratti di servizio pubblico;2;Contratti di servizio di trasporto scolastico;21/11/2017
1855;1;476,47;476,47;ENEL ENERGIA SPA; ;Fatt.n. 004801564406  del 11/11/2017 FATT. OTT.2017;23/11/2017;6030;5;412;1;Spese correnti;3;Acquisto di beni e servizi;2;Acquisto di servizi;5;Utenze e canoni;4;Energia elettrica;23/11/2017
1856;1;61,33;7.442,36;ENEL ENERGIA SPA;0;Fatt.n. 004801545557  del 08/11/2017 FATT. SETT./OTT.2017;23/11/2017;6030;12;419;1;Spese correnti;3;Acquisto di beni e servizi;2;Acquisto di servizi;5;Utenze e canoni;4;Energia elettrica;23/11/2017
1856;2;243,84;7.442,36;ENEL ENERGIA SPA; ;Fatt.n. 004801564404  del 11/11/2017 FATT. I.P. OTT.2017;23/11/2017;6030;12;419;1;Spese correnti;3;Acquisto di beni e servizi;2;Acquisto di servizi;5;Utenze e canoni;4;Energia elettrica;23/11/2017
1856;3;943,4;7.442,36;ENEL ENERGIA SPA; ;Fatt.n. 004801571281  del 13/11/2017 CALCOLI DI RETTIFICA FINO A DIC.2014;23/11/2017;6030;12;419;1;Spese correnti;3;Acquisto di beni e servizi;2;Acquisto di servizi;5;Utenze e canoni;4;Energia elettrica;23/11/2017
1856;4;6.195,79;7.442,36;ENEL ENERGIA SPA; ;Fatt.n. 004801564405  del 11/11/2017 FATT. I.P. OTT.2017;23/11/2017;6030;12;419;1;Spese correnti;3;Acquisto di beni e servizi;2;Acquisto di servizi;5;Utenze e canoni;4;Energia elettrica;23/11/2017
1857;1;1.652,54;1.652,54;COMITATO PARITETICO TERRITORIALE; ;SALDO Fatt.n. FATTPA 27_17  del 11/10/2017 LAVORI MARCIAPIEDE VA N.DANTE;23/11/2017;5087;1;307;2;Spese in conto capitale;2;Investimenti fissi lordi e acquisto di terreni;1;Beni materiali;9;Beni immobili;13;Altre vie di comunicazione;24/11/2017
1858;1;4.588,65;4.588,65;BENFATTA SALVATORE & C. S.N.C.;Z7520BF23F;SALDO Fatt.n. 000008-2017-FATTURE  del 14/11/2017 IMPEGNO SPESA N.195 DEL 14/11/2017-ripristino condotta idrica;23/11/2017;4035;0;376;2;Spese in conto capitale;2;Investimenti fissi lordi e acquisto di terreni;1;Beni materiali;9;Beni immobili;13;Altre vie di comunicazione;23/11/2017
1859;1;167,65;167,65;TELECOM ITALIA S.P.A.; ;SALDO Fatt.n. 8V00595914  del 09/11/2017 F. TELECOM VI BIM.2017 IST. COMPRENSIVO;23/11/2017;6040;9;428;1;Spese correnti;3;Acquisto di beni e servizi;2;Acquisto di servizi;5;Utenze e canoni;1;Telefonia fissa;04/12/2017
1860;1;16.836,00;16.836,00;COSMAK S.R.L.;694246602F;SALDO Fatt.n. 9/E  del 11/10/2017 2 S.A.L. MARCIAPIEDE VIA N.DANTE;23/11/2017;5087;1;137;2;Spese in conto capitale;2;Investimenti fissi lordi e acquisto di terreni;1;Beni materiali;9;Beni immobili;13;Altre vie di comunicazione;24/11/2017
1861;1;598,8;598,8;COSMAK S.R.L.;694246602F;SALDO Fatt.n. 11/E  del 11/10/2017 RIMBORSO ONERI CONFERIMENTO IN DISCARICA LAVORI MARCIAPIEDE VIA N. DANTE;23/11/2017;5087;1;141;2;Spese in conto capitale;2;Investimenti fissi lordi e acquisto di terreni;1;Beni materiali;9;Beni immobili;13;Altre vie di comunicazione;24/11/2017
1863;1;345,74;345,74;ORIFICI CARMELO-MARTINO CARMELA; ;canone locazione DIC. 2017;24/11/2017;2230;0;118;1;Spese correnti;3;Acquisto di beni e servizi;2;Acquisto di servizi;7;Utilizzo di beni di terzi;5;Fitti di terreni e giacimenti;24/11/2017
1865;1;22;22;ENEL DISTRIBUZIONE SICILIA S.P.A.; ;SALDO Fatt.n. 0000917900005588  del 10/11/2017 ANTICIPO CONTRIBUTO;27/11/2017;1059;0;337;1;Spese correnti;3;Acquisto di beni e servizi;1;Acquisto di beni;2;Altri beni di consumo;1;Carta, cancelleria e stampati;27/11/2017
1866;1;138;138;KUWAIT PETROLEUM ITALIA S.P.A.;6516542493;Fatt.n. PJ00102695 del 31/10/2017 carburante per automezzi ott.2017;27/11/2017;6080;2;25;1;Spese correnti;3;Acquisto di beni e servizi;1;Acquisto di beni;2;Altri beni di consumo;2;Carburanti, combustibili e lubrificanti;27/11/2017
1867;1;1.217,00;1.217,00;KUWAIT PETROLEUM ITALIA S.P.A.;6516542493;Fatt.n. PJ00102695 del 31/10/2017 carburante per automezzi ott.2017;27/11/2017;6080;3;26;1;Spese correnti;3;Acquisto di beni e servizi;1;Acquisto di beni;2;Altri beni di consumo;2;Carburanti, combustibili e lubrificanti;27/11/2017
1868;1;282;282;KUWAIT PETROLEUM ITALIA S.P.A.;6516542493;Fatt.n. PJ00102695 del 31/10/2017 carburante per automezzi ott.2017;27/11/2017;6080;4;27;1;Spese correnti;3;Acquisto di beni e servizi;1;Acquisto di beni;2;Altri beni di consumo;2;Carburanti, combustibili e lubrificanti;27/11/2017
1869;1;871;871;KUWAIT PETROLEUM ITALIA S.P.A.;6516542493;Fatt.n. PJ00102695 del 31/10/2017 carburante per automezzi ott.2017;27/11/2017;6080;7;29;1;Spese correnti;3;Acquisto di beni e servizi;1;Acquisto di beni;2;Altri beni di consumo;2;Carburanti, combustibili e lubrificanti;27/11/2017
1873;1;30;30;ANAC AUTORITA' NAZIONALE ANTICORRUZIONE;7140282B19;servizio spazzamento raccolta rifiuti FINO AL 30/10/17-CONTRIBUTO ANAC;29/11/2017;1744;0;299;1;Spese correnti;3;Acquisto di beni e servizi;2;Acquisto di servizi;15;Contratti di servizio pubblico;5;Contratti di servizio per il conferimento in discarica dei rifiuti;04/12/2017
1874;1;3.500,00;3.500,00;PARROCCHIA S.MARIA E S.PANCRAZIO; ;CONTRIBUTO PER festeggiamenti Santo Patrono S.Biagio  2017;29/11/2017;2000;7;375;1;Spese correnti;4;Trasferimenti correnti;4;Trasferimenti correnti a Istituzioni Sociali Private;1;Trasferimenti correnti a Istituzioni Sociali Private;1;Trasferimenti correnti a Istituzioni Sociali Private;29/11/2017
1876;1;1.110,46;1.110,46;CAFARELLI TINDARO;ZD4201CA28;SALDO Fatt.n. 000004-2017-CATI  del 21/11/2017 FORNITURA GASOLIO;30/11/2017;1579;0;304;1;Spese correnti;3;Acquisto di beni e servizi;2;Acquisto di servizi;9;Manutenzione ordinaria e riparazioni;8;Manutenzione ordinaria e riparazioni di beni immobili;30/11/2017
1877;1;6.907,45;6.907,45;UNICREDIT-CASSA REG.LE MESSINA; ;CANONI DEMANIALI ACQUE PUBBLICHE ANNO 2017;30/11/2017;1685;0;383;1;Spese correnti;3;Acquisto di beni e servizi;2;Acquisto di servizi;7;Utilizzo di beni di terzi;999;Altre spese sostenute per utilizzo di beni di terzi n.a.c.;06/12/2017
1878;1;11,75;11,75;AL CENTESIMO SOC. COOP. S.R.L.;ZD01C2A31C;SALDO Fatt.n. 28/E  del 31/10/2017 CROCCHETTE PER CANI;30/11/2017;1766;0;117;1;Spese correnti;3;Acquisto di beni e servizi;2;Acquisto di servizi;99;Altri servizi;999;Altri servizi diversi n.a.c.;14/12/2017
1879;1;34,44;34,44;MyO S.R.L.; ;SALDO Fatt.n. 2040/170027719  del 15/11/2017 MATERIALE CANCELLERIA PER UFFICI;30/11/2017;6050;18;347;1;Spese correnti;3;Acquisto di beni e servizi;1;Acquisto di beni;2;Altri beni di consumo;1;Carta, cancelleria e stampati;14/12/2017
1880;1;83,64;83,64;INTERDONATO GIACOMO S.N.C.; ;SALDO Fatt.n. 000004-2017-FE  del 22/11/2017 BUONI LIBRO A.S.2017/18;30/11/2017;2000;10;403;1;Spese correnti;3;Acquisto di beni e servizi;2;Acquisto di servizi;99;Altri servizi;999;Altri servizi diversi n.a.c.;30/11/2017
1884;1;2.238,29;2.238,29;BIONDO ENZO; ;SALDO Fatt.n. PA 1 / PA  del 31/10/2017 saldo giudizio tar;04/12/2017;1058;2;276;1;Spese correnti;3;Acquisto di beni e servizi;2;Acquisto di servizi;99;Altri servizi;2;Altre spese legali;04/12/2017
1885;1;560,39;560,39;POSTEL S.P.A.;ZE11FF32F1;SALDO Fatt.n. 2017114511  del 31/10/2017 Postalizzazione ruoli;04/12/2017;1043;3;287;1;Spese correnti;3;Acquisto di beni e servizi;2;Acquisto di servizi;16;Servizi amministrativi;2;Spese postali;04/12/2017
1886;1;1.518,37;2.126,72;FIORE SALVATORE VITTORIO; ;indennita' funzione NOVEMBRE 2017;04/12/2017;1001;0;42;1;Spese correnti;3;Acquisto di beni e servizi;2;Acquisto di servizi;1;Organi e incarichi istituzionali dell'amministrazione;1;Organi istituzionali dell'amministrazione - Indennità;04/12/2017
1886;2;152,83;2.126,72;INTERDONATO ARMANDO; ;indennita' funzione NOVEMBRE 2017;04/12/2017;1001;0;42;1;Spese correnti;3;Acquisto di beni e servizi;2;Acquisto di servizi;1;Organi e incarichi istituzionali dell'amministrazione;1;Organi istituzionali dell'amministrazione - Indennità;04/12/2017
1886;3;228,76;2.126,72;LAMANCUSA MARCO; ;indennita' funzione NOVEMBRE 2017;04/12/2017;1001;0;42;1;Spese correnti;3;Acquisto di beni e servizi;2;Acquisto di servizi;1;Organi e incarichi istituzionali dell'amministrazione;1;Organi istituzionali dell'amministrazione - Indennità;04/12/2017
1886;4;228,76;2.126,72;PETTINATO  ROSA SANDRA; ;indennita' funzione NOVEMBRE 2017;04/12/2017;1001;0;42;1;Spese correnti;3;Acquisto di beni e servizi;2;Acquisto di servizi;1;Organi e incarichi istituzionali dell'amministrazione;1;Organi istituzionali dell'amministrazione - Indennità;04/12/2017
1887;1;228,76;228,76;FORZANO GIUSEPPE; ; ;04/12/2017;1001;0;42;1;Spese correnti;3;Acquisto di beni e servizi;2;Acquisto di servizi;1;Organi e incarichi istituzionali dell'amministrazione;1;Organi istituzionali dell'amministrazione - Indennità;04/12/2017
1888;1;104,29;104,29;ECONOMO COMUNALE; ;RIMBORSO SPESE ECONOMATO 4^ TRIMESTRE 2017 - MESE DI NOVEMBRE -;04/12/2017;1059;0;337;1;Spese correnti;3;Acquisto di beni e servizi;1;Acquisto di beni;2;Altri beni di consumo;1;Carta, cancelleria e stampati;04/12/2017
1889;1;236,13;236,13;ECONOMO COMUNALE; ;RIMBORSO SPESE ECONOMATO 4^ TRIMESTRE 2017 - MESE DI NOVEMBRE -;04/12/2017;1690;2;372;1;Spese correnti;3;Acquisto di beni e servizi;2;Acquisto di servizi;9;Manutenzione ordinaria e riparazioni;11;Manutenzione ordinaria e riparazioni di altri beni materiali;04/12/2017
1890;1;200;200;ECONOMO COMUNALE; ;RIMBORSO SPESE ECONOMATO 4^ TRIMESTRE 2017 - MESE DI NOVEMBRE -;04/12/2017;2120;0;322;1;Spese correnti;3;Acquisto di beni e servizi;2;Acquisto di servizi;9;Manutenzione ordinaria e riparazioni;11;Manutenzione ordinaria e riparazioni di altri beni materiali;04/12/2017
1891;1;122;122;ECONOMO COMUNALE; ;RIMBORSO SPESE ECONOMATO 4^ TRIMESTRE 2017 - MESE DI NOVEMBRE -;04/12/2017;2120;5;360;1;Spese correnti;3;Acquisto di beni e servizi;2;Acquisto di servizi;9;Manutenzione ordinaria e riparazioni;11;Manutenzione ordinaria e riparazioni di altri beni materiali;04/12/2017
1892;1;98,6;98,6;ECONOMO COMUNALE; ;RIMBORSO SPESE ECONOMATO 4^ TRIMESTRE 2017 - MESE DI NOVEMBRE -;04/12/2017;2120;8;350;1;Spese correnti;3;Acquisto di beni e servizi;2;Acquisto di servizi;9;Manutenzione ordinaria e riparazioni;11;Manutenzione ordinaria e riparazioni di altri beni materiali;04/12/2017
1893;1;43,7;43,7;ECONOMO COMUNALE; ;RIMBORSO SPESE ECONOMATO 4^ TRIMESTRE 2017 - MESE DI NOVEMBRE -;04/12/2017;2140;0;323;1;Spese correnti;3;Acquisto di beni e servizi;1;Acquisto di beni;2;Altri beni di consumo;6;Materiale informatico;04/12/2017
1894;1;156;156;ECONOMO COMUNALE; ;RIMBORSO SPESE ECONOMATO 4^ TRIMESTRE 2017 - MESE DI NOVEMBRE -;04/12/2017;2140;1;324;1;Spese correnti;3;Acquisto di beni e servizi;1;Acquisto di beni;2;Altri beni di consumo;6;Materiale informatico;04/12/2017
1895;1;117,12;117,12;ECONOMO COMUNALE; ;RIMBORSO SPESE ECONOMATO 4^ TRIMESTRE 2017 - MESE DI NOVEMBRE -;04/12/2017;2140;5;351;1;Spese correnti;3;Acquisto di beni e servizi;1;Acquisto di beni;2;Altri beni di consumo;6;Materiale informatico;04/12/2017
1896;1;65,51;65,51;ECONOMO COMUNALE; ;RIMBORSO SPESE ECONOMATO 4^ TRIMESTRE 2017 - MESE DI NOVEMBRE -;04/12/2017;2140;6;361;1;Spese correnti;3;Acquisto di beni e servizi;1;Acquisto di beni;2;Altri beni di consumo;6;Materiale informatico;04/12/2017
1897;1;100;100;ECONOMO COMUNALE; ;RIMBORSO SPESE ECONOMATO 4^ TRIMESTRE 2017 - MESE DI NOVEMBRE -;04/12/2017;6050;0;326;1;Spese correnti;3;Acquisto di beni e servizi;1;Acquisto di beni;2;Altri beni di consumo;1;Carta, cancelleria e stampati;04/12/2017
1898;1;63,2;63,2;ECONOMO COMUNALE; ;RIMBORSO SPESE ECONOMATO 4^ TRIMESTRE 2017 - MESE DI NOVEMBRE -;04/12/2017;6050;3;346;1;Spese correnti;3;Acquisto di beni e servizi;1;Acquisto di beni;2;Altri beni di consumo;1;Carta, cancelleria e stampati;04/12/2017
1899;1;222,5;222,5;ECONOMO COMUNALE; ;RIMBORSO SPESE ECONOMATO 4^ TRIMESTRE 2017 - MESE DI NOVEMBRE -;04/12/2017;6050;4;356;1;Spese correnti;3;Acquisto di beni e servizi;1;Acquisto di beni;2;Altri beni di consumo;1;Carta, cancelleria e stampati;04/12/2017
1900;1;159,12;159,12;ECONOMO COMUNALE; ;RIMBORSO SPESE ECONOMATO 4^ TRIMESTRE 2017 - MESE DI NOVEMBRE -;04/12/2017;6050;18;347;1;Spese correnti;3;Acquisto di beni e servizi;1;Acquisto di beni;2;Altri beni di consumo;1;Carta, cancelleria e stampati;04/12/2017
1902;1;729,75;729,75;ASMEL; ;QUOTA ASSOCIATIVA ASMEL ANNO 2017;05/12/2017;1060;9;314;1;Spese correnti;4;Trasferimenti correnti;1;Trasferimenti correnti a Amministrazioni Pubbliche;2;Trasferimenti correnti a Amministrazioni Locali;999;Trasferimenti correnti a altre Amministrazioni Locali n.a.c.;05/12/2017
1903;1;417,3;417,3;TECNOTEAM COSTRUZIONI S.R.L.;6188038280;ACCONTO Fatt.n. 10 F.E.  del 26/07/2017 s.f. lavori realizzazione alloggi popolari;05/12/2017;5064;0;1428;2;Spese in conto capitale;2;Investimenti fissi lordi e acquisto di terreni;1;Beni materiali;9;Beni immobili;1;Fabbricati ad uso abitativo;06/12/2017
1904;1;12.439,81;12.439,81;TECNOTEAM COSTRUZIONI S.R.L.;6188038280;SALDO Fatt.n. 10 F.E.  del 26/07/2017 s.f. lavori realizzazione alloggi popolari;05/12/2017;5064;0;1428;2;Spese in conto capitale;2;Investimenti fissi lordi e acquisto di terreni;1;Beni materiali;9;Beni immobili;1;Fabbricati ad uso abitativo;06/12/2017
1905;1;12,4;43,4;PRINCIOTTA MARIA VINCENZA; ;CONTRIBUTO ACQUISTO LIBRI DI TESTO A.S.2017/2018;06/12/2017;2000;10;407;1;Spese correnti;3;Acquisto di beni e servizi;2;Acquisto di servizi;99;Altri servizi;999;Altri servizi diversi n.a.c.;21/12/2017
1905;2;19,6;43,4;SCHEPIS FIORELLA; ;CONTRIBUTO ACQUISTO LIBRI DI TESTO A.S.2017/2018;06/12/2017;2000;10;407;1;Spese correnti;3;Acquisto di beni e servizi;2;Acquisto di servizi;99;Altri servizi;999;Altri servizi diversi n.a.c.;06/12/2017
1905;3;12,4;43,4;TRICOLI MARIA; ;CONTRIBUTO ACQUISTO LIBRI DI TESTO A.S.2017/2018;06/12/2017;2000;10;407;1;Spese correnti;3;Acquisto di beni e servizi;2;Acquisto di servizi;99;Altri servizi;999;Altri servizi diversi n.a.c.;28/12/2017
1906;1;2.126,82;2.126,82;CASSA DEPOSITI E PRESTITI S.P.A.; ;Quota  Interesse Ammortam. Mutui CDP Anno 2017-II SEMESTRE;06/12/2017;2240;0;14;1;Spese correnti;7;Interessi passivi;5;Interessi su Mutui e altri finanziamenti a medio lungo termine;5;Interessi passivi su mutui e altri finanziamenti a medio lungo termine ad altri soggetti;999;Interessi passivi su mutui e altri finanziamenti a medio lungo termine ad altri soggetti;29/12/2017
1907;1;2.366,85;2.366,85;CASSA DEPOSITI E PRESTITI S.P.A.; ;Quota  Interesse Ammortam. Mutui MEF Anno 2017-II SEMESTRE;06/12/2017;2240;0;18;1;Spese correnti;7;Interessi passivi;5;Interessi su Mutui e altri finanziamenti a medio lungo termine;5;Interessi passivi su mutui e altri finanziamenti a medio lungo termine ad altri soggetti;999;Interessi passivi su mutui e altri finanziamenti a medio lungo termine ad altri soggetti;29/12/2017
1908;1;4.279,11;4.279,11;CASSA DEPOSITI E PRESTITI S.P.A.; ;Quota  Interesse Ammortam. Mutui CDP Anno 2017-II SEMESTRE;06/12/2017;1580;0;4;1;Spese correnti;7;Interessi passivi;5;Interessi su Mutui e altri finanziamenti a medio lungo termine;5;Interessi passivi su mutui e altri finanziamenti a medio lungo termine ad altri soggetti;999;Interessi passivi su mutui e altri finanziamenti a medio lungo termine ad altri soggetti;29/12/2017
1909;1;1.559,02;1.559,02;CASSA DEPOSITI E PRESTITI S.P.A.; ;Quota  Interesse Ammortam. Mutui CDP ANNO   2017-II SEMESTRE;06/12/2017;1610;0;5;1;Spese correnti;7;Interessi passivi;5;Interessi su Mutui e altri finanziamenti a medio lungo termine;5;Interessi passivi su mutui e altri finanziamenti a medio lungo termine ad altri soggetti;999;Interessi passivi su mutui e altri finanziamenti a medio lungo termine ad altri soggetti;29/12/2017
1910;1;20.717,56;20.717,56;CASSA DEPOSITI E PRESTITI S.P.A.; ;Quota  Interesse Ammortam. Mutui CDP  Anno 2017-II SEMESTRE;06/12/2017;1942;0;11;1;Spese correnti;7;Interessi passivi;5;Interessi su Mutui e altri finanziamenti a medio lungo termine;5;Interessi passivi su mutui e altri finanziamenti a medio lungo termine ad altri soggetti;999;Interessi passivi su mutui e altri finanziamenti a medio lungo termine ad altri soggetti;29/12/2017
1911;1;2.769,64;2.769,64;CASSA DEPOSITI E PRESTITI S.P.A.; ;Quota  Interesse Ammortam. Mutui CDP  Anno 2017-II SEMESTRE;06/12/2017;1885;0;9;1;Spese correnti;7;Interessi passivi;5;Interessi su Mutui e altri finanziamenti a medio lungo termine;5;Interessi passivi su mutui e altri finanziamenti a medio lungo termine ad altri soggetti;999;Interessi passivi su mutui e altri finanziamenti a medio lungo termine ad altri soggetti;29/12/2017
1912;1;27.351,64;27.351,64;CASSA DEPOSITI E PRESTITI S.P.A.; ;Quota  Interesse Ammortam. Mutui CDP  Anno 2017-II SEMESTRE;06/12/2017;1941;0;10;1;Spese correnti;7;Interessi passivi;5;Interessi su Mutui e altri finanziamenti a medio lungo termine;5;Interessi passivi su mutui e altri finanziamenti a medio lungo termine ad altri soggetti;999;Interessi passivi su mutui e altri finanziamenti a medio lungo termine ad altri soggetti;29/12/2017
1913;1;1.191,42;1.191,42;CASSA DEPOSITI E PRESTITI S.P.A.; ;Quota  Interesse Ammortam. Mutui CDP  Anno 2017-II SEMESTRE;06/12/2017;1837;1;8;1;Spese correnti;7;Interessi passivi;5;Interessi su Mutui e altri finanziamenti a medio lungo termine;5;Interessi passivi su mutui e altri finanziamenti a medio lungo termine ad altri soggetti;999;Interessi passivi su mutui e altri finanziamenti a medio lungo termine ad altri soggetti;29/12/2017
1914;1;2.574,91;2.574,91;CASSA DEPOSITI E PRESTITI S.P.A.; ;Quota  Interesse Ammortam. Mutui CDP  Anno 2017-II SEMESTRE;06/12/2017;2162;0;13;1;Spese correnti;7;Interessi passivi;5;Interessi su Mutui e altri finanziamenti a medio lungo termine;4;Interessi passivi su finanziamenti a medio lungo termine a Imprese;999;Interessi passivi a altre imprese su finanziamenti a medio lungo termine;29/12/2017
1915;1;1.288,75;1.288,75;CASSA DEPOSITI E PRESTITI S.P.A.; ;Quota  Interesse Ammortam. Mutui CDP Anno 2017-II SEMESTRE;06/12/2017;1742;0;6;1;Spese correnti;7;Interessi passivi;5;Interessi su Mutui e altri finanziamenti a medio lungo termine;5;Interessi passivi su mutui e altri finanziamenti a medio lungo termine ad altri soggetti;999;Interessi passivi su mutui e altri finanziamenti a medio lungo termine ad altri soggetti;29/12/2017
1916;1;960,9;960,9;CASSA DEPOSITI E PRESTITI S.P.A.; ;Quota  Interesse Ammortam. Mutui  CDP Anno 2017-II SEMESTRE;06/12/2017;1491;0;2;1;Spese correnti;7;Interessi passivi;5;Interessi su Mutui e altri finanziamenti a medio lungo termine;5;Interessi passivi su mutui e altri finanziamenti a medio lungo termine ad altri soggetti;999;Interessi passivi su mutui e altri finanziamenti a medio lungo termine ad altri soggetti;29/12/2017
1917;1;389,99;389,99;CASSA DEPOSITI E PRESTITI S.P.A.; ;Quota  Interesse Ammortam. Mutui MEF  Anno 2017-II SEMESTRE;06/12/2017;1574;0;3;1;Spese correnti;7;Interessi passivi;5;Interessi su Mutui e altri finanziamenti a medio lungo termine;5;Interessi passivi su mutui e altri finanziamenti a medio lungo termine ad altri soggetti;999;Interessi passivi su mutui e altri finanziamenti a medio lungo termine ad altri soggetti;29/12/2017
1918;1;197,01;197,01;CASSA DEPOSITI E PRESTITI S.P.A.; ;Quota  Interesse Ammortam. Mutui CDP  Anno 2017-II SEMESTRE;06/12/2017;1745;0;7;1;Spese correnti;7;Interessi passivi;5;Interessi su Mutui e altri finanziamenti a medio lungo termine;5;Interessi passivi su mutui e altri finanziamenti a medio lungo termine ad altri soggetti;999;Interessi passivi su mutui e altri finanziamenti a medio lungo termine ad altri soggetti;29/12/2017
1919;1;114,63;114,63;CASSA DEPOSITI E PRESTITI S.P.A.; ;Quota  Interesse Ammortam. Mutui CDP  Anno 2017-II SEMESTRE;06/12/2017;1746;0;19;1;Spese correnti;7;Interessi passivi;5;Interessi su Mutui e altri finanziamenti a medio lungo termine;5;Interessi passivi su mutui e altri finanziamenti a medio lungo termine ad altri soggetti;999;Interessi passivi su mutui e altri finanziamenti a medio lungo termine ad altri soggetti;29/12/2017
1920;1;2.067,22;2.067,22;CASSA DEPOSITI E PRESTITI S.P.A.; ;Quota  Interesse Ammortam. Mutui CDP   Anno 2017-II SEMESTRE;06/12/2017;1943;0;12;1;Spese correnti;7;Interessi passivi;5;Interessi su Mutui e altri finanziamenti a medio lungo termine;5;Interessi passivi su mutui e altri finanziamenti a medio lungo termine ad altri soggetti;999;Interessi passivi su mutui e altri finanziamenti a medio lungo termine ad altri soggetti;29/12/2017
1924;1;8.131,69;8.131,69;PIZZO PIPPO;Z4A208C59D;SALDO Fatt.n. 90|2017  del 30/11/2017 spazzam. e raccolta rrssuu 01/11-15/11/2017;11/12/2017;1744;0;315;1;Spese correnti;3;Acquisto di beni e servizi;2;Acquisto di servizi;15;Contratti di servizio pubblico;5;Contratti di servizio per il conferimento in discarica dei rifiuti;11/12/2017
1925;1;899,14;899,14;C.M.C. SRL;ZC320A1436;SALDO Fatt.n. 49/PA  del 23/11/2017 VERNICE PER SEGNALETICA STRADALE;11/12/2017;4035;0;373;2;Spese in conto capitale;2;Investimenti fissi lordi e acquisto di terreni;1;Beni materiali;9;Beni immobili;13;Altre vie di comunicazione;11/12/2017
1926;1;919;919;CELI CESIRA;ZC01F8086A;SALDO Fatt.n. PA 6 / PA  del 22/11/2017 MOTOSEGA E DECESPLUGLIATORE;11/12/2017;1579;0;203;1;Spese correnti;3;Acquisto di beni e servizi;2;Acquisto di servizi;9;Manutenzione ordinaria e riparazioni;8;Manutenzione ordinaria e riparazioni di beni immobili;11/12/2017
1927;1;7.877,25;20.394,58;CAROLLO ANTONIO;4799429619;"SALDO Fatt.n. 03/17  del 14/09/2017 saldo compensi per la Sicurezza in fase di progettazione dei lavori di ""Prolungamento della via P. Profeta con la via Nino Dante"".";11/12/2017;5087;0;477;2;Spese in conto capitale;2;Investimenti fissi lordi e acquisto di terreni;1;Beni materiali;9;Beni immobili;13;Altre vie di comunicazione;11/12/2017
1927;2;12.516,33;20.394,58;CAROLLO ANTONIO;4799429619;"SALDO Fatt.n. 01/17  del 14/09/2017 Compensi per la progettazione esecutiva dei lavori di ""Prolungamento della via P. Profeta con la via Nino Dante""";11/12/2017;5087;0;477;2;Spese in conto capitale;2;Investimenti fissi lordi e acquisto di terreni;1;Beni materiali;9;Beni immobili;13;Altre vie di comunicazione;11/12/2017
1928;1;3.751,66;3.751,66;FOTI MARIO; ;SALDO Fatt.n. FatPAM 04/2017  del 15/10/2017;11/12/2017;1058;2;120;1;Spese correnti;3;Acquisto di beni e servizi;2;Acquisto di servizi;99;Altri servizi;2;Altre spese legali;11/12/2017
1931;1;620,8;620,8;CASELLA ROBERTA; ;SUSSIDIO RAGAZZE MADRI ANNO 2017;12/12/2017;1878;6;385;1;Spese correnti;4;Trasferimenti correnti;2;Trasferimenti correnti a Famiglie;1;Interventi previdenziali;999;Altri sussidi e assegni;14/12/2017
1932;1;1.000,00;4.000,00;INTERDONATO GIANCARLO; ;INTERVENTI IN FAVORE SOGGETTI PORTATORI DI HANDICAP GRAVI ANNO 2017;12/12/2017;1878;1;386;1;Spese correnti;4;Trasferimenti correnti;2;Trasferimenti correnti a Famiglie;1;Interventi previdenziali;999;Altri sussidi e assegni;14/12/2017
1932;2;1.000,00;4.000,00;LEONE ALBA; ;INTERVENTI IN FAVORE SOGGETTI PORTATORI DI HANDICAP GRAVI ANNO 2017;12/12/2017;1878;1;386;1;Spese correnti;4;Trasferimenti correnti;2;Trasferimenti correnti a Famiglie;1;Interventi previdenziali;999;Altri sussidi e assegni;14/12/2017
1932;3;1.000,00;4.000,00;SCHEPIS MARIA GRAZIA; ;INTERVENTI IN FAVORE SOGGETTI PORTATORI DI HANDICAP GRAVI ANNO 2017;12/12/2017;1878;1;386;1;Spese correnti;4;Trasferimenti correnti;2;Trasferimenti correnti a Famiglie;1;Interventi previdenziali;999;Altri sussidi e assegni;14/12/2017
1932;4;1.000,00;4.000,00;TRICOLI CATENA; ;INTERVENTI IN FAVORE SOGGETTI PORTATORI DI HANDICAP GRAVI ANNO 2017;12/12/2017;1878;1;386;1;Spese correnti;4;Trasferimenti correnti;2;Trasferimenti correnti a Famiglie;1;Interventi previdenziali;999;Altri sussidi e assegni;14/12/2017
1933;1;0,05;2.702,14;AL CENTESIMO SOC. COOP. S.R.L.;ZD01C2A31C;SALDO Fatt.n. 26/E  del 31/10/2017 GENERI ALIMENTARI  PER ASILO NIDO SETT.2017;12/12/2017;1776;1;197;1;Spese correnti;3;Acquisto di beni e servizi;1;Acquisto di beni;2;Altri beni di consumo;999;Altri beni e materiali di consumo n.a.c.;14/12/2017
1933;2;0,02;2.702,14;AL CENTESIMO SOC. COOP. S.R.L.;ZD01C2A31C;SALDO Fatt.n. 29/E  del 22/11/2017 GENERI ALIMENTARI  PER ASILO NIDO OTT.2017;12/12/2017;1776;1;197;1;Spese correnti;3;Acquisto di beni e servizi;1;Acquisto di beni;2;Altri beni di consumo;999;Altri beni e materiali di consumo n.a.c.;14/12/2017
1933;3;0,14;2.702,14;AL CENTESIMO SOC. COOP. S.R.L.;ZD01C2A31C;SALDO Fatt.n. 31/E  del 04/12/2017 GENERI ALIMENTARI PER ASILO NIDO NOV.2017;12/12/2017;1776;1;197;1;Spese correnti;3;Acquisto di beni e servizi;1;Acquisto di beni;2;Altri beni di consumo;999;Altri beni e materiali di consumo n.a.c.;14/12/2017
1933;4;846,67;2.702,14;AL CENTESIMO SOC. COOP. S.R.L.;ZD01C2A31C;ACCONTO Fatt.n. 29/E  del 22/11/2017 GENERI ALIMENTARI  PER ASILO NIDO OTT.2017;12/12/2017;1776;1;197;1;Spese correnti;3;Acquisto di beni e servizi;1;Acquisto di beni;2;Altri beni di consumo;999;Altri beni e materiali di consumo n.a.c.;14/12/2017
1933;5;924,62;2.702,14;AL CENTESIMO SOC. COOP. S.R.L.;ZD01C2A31C;ACCONTO Fatt.n. 31/E  del 04/12/2017 GENERI ALIMENTARI PER ASILO NIDO NOV.2017;12/12/2017;1776;1;197;1;Spese correnti;3;Acquisto di beni e servizi;1;Acquisto di beni;2;Altri beni di consumo;999;Altri beni e materiali di consumo n.a.c.;14/12/2017
1933;6;933,74;2.702,14;AL CENTESIMO SOC. COOP. S.R.L.;ZD01C2A31C;SALDO Fatt.n. 26/E  del 31/10/2017 GENERI ALIMENTARI  PER ASILO NIDO SETT.2017;12/12/2017;1776;1;197;1;Spese correnti;3;Acquisto di beni e servizi;1;Acquisto di beni;2;Altri beni di consumo;999;Altri beni e materiali di consumo n.a.c.;14/12/2017
1934;1;0,01;513,91;AL CENTESIMO SOC. COOP. S.R.L.;Z201C2A1C1;SALDO Fatt.n. 27/E  del 31/10/2017 CARNE PER ASILO NIDO SETT.2017;12/12/2017;1776;1;197;1;Spese correnti;3;Acquisto di beni e servizi;1;Acquisto di beni;2;Altri beni di consumo;999;Altri beni e materiali di consumo n.a.c.;14/12/2017
1934;2;0,01;513,91;AL CENTESIMO SOC. COOP. S.R.L.;Z201C2A1C1;SALDO Fatt.n. 30/E  del 22/11/2017 CARNE PER ASILO NIDO OTT.2017;12/12/2017;1776;1;197;1;Spese correnti;3;Acquisto di beni e servizi;1;Acquisto di beni;2;Altri beni di consumo;999;Altri beni e materiali di consumo n.a.c.;14/12/2017
1934;3;0,01;513,91;AL CENTESIMO SOC. COOP. S.R.L.;Z201C2A1C1;SALDO Fatt.n. 32/E  del 04/12/2017 CARNE PER ASILO NIDO NOV.2017;12/12/2017;1776;1;197;1;Spese correnti;3;Acquisto di beni e servizi;1;Acquisto di beni;2;Altri beni di consumo;999;Altri beni e materiali di consumo n.a.c.;14/12/2017
1934;4;163,5;513,91;AL CENTESIMO SOC. COOP. S.R.L.;ZD01C2A31C;ACCONTO Fatt.n. 30/E  del 22/11/2017 CARNE PER ASILO NIDO OTT.2017;12/12/2017;1776;1;197;1;Spese correnti;3;Acquisto di beni e servizi;1;Acquisto di beni;2;Altri beni di consumo;999;Altri beni e materiali di consumo n.a.c.;14/12/2017
1934;5;168,33;513,91;AL CENTESIMO SOC. COOP. S.R.L.;ZD01C2A31C;ACCONTO Fatt.n. 27/E  del 31/10/2017 CARNE PER ASILO NIDO SETT.2017;12/12/2017;1776;1;197;1;Spese correnti;3;Acquisto di beni e servizi;1;Acquisto di beni;2;Altri beni di consumo;999;Altri beni e materiali di consumo n.a.c.;14/12/2017
1934;6;182,05;513,91;AL CENTESIMO SOC. COOP. S.R.L.;ZD01C2A31C;ACCONTO Fatt.n. 32/E  del 04/12/2017 CARNE PER ASILO NIDO NOV.2017;12/12/2017;1776;1;197;1;Spese correnti;3;Acquisto di beni e servizi;1;Acquisto di beni;2;Altri beni di consumo;999;Altri beni e materiali di consumo n.a.c.;14/12/2017
1935;1;17,95;17,95;AL CENTESIMO SOC. COOP. S.R.L.;ZD01C2A31C;SALDO Fatt.n. 33/E  del 04/12/2017 scatolette per cani;12/12/2017;1766;0;117;1;Spese correnti;3;Acquisto di beni e servizi;2;Acquisto di servizi;99;Altri servizi;999;Altri servizi diversi n.a.c.;15/12/2017
1936;1;22;22;MAGGIOLI S.p.A.; ;SALDO Fatt.n. 0002143857  del 30/11/2017 FATT. IVA SPLIT P.-KIT FIRMA DIGITALE;12/12/2017;1410;0;321;1;Spese correnti;3;Acquisto di beni e servizi;2;Acquisto di servizi;99;Altri servizi;999;Altri servizi diversi n.a.c.;14/12/2017
1937;1;1.500,00;1.500,00;GRANATA ANGELO;ZB01FE0966;SALDO Fatt.n. 000003-2017-11  del 04/12/2017 DETERMINA nr. 62 Reg. Uff. del 13/09/2017-LAVORI RIPRISTINO COLORITURA ASILO NIDO;13/12/2017;4035;0;275;2;Spese in conto capitale;2;Investimenti fissi lordi e acquisto di terreni;1;Beni materiali;9;Beni immobili;13;Altre vie di comunicazione;15/12/2017
1938;1;52;52;KUWAIT PETROLEUM ITALIA S.P.A.;6516542493;Fatt.n. PJ00106782 del 30/11/2017 CARBURANTE PER AUTOMEZZI NOV.2017;13/12/2017;6080;2;25;1;Spese correnti;3;Acquisto di beni e servizi;1;Acquisto di beni;2;Altri beni di consumo;2;Carburanti, combustibili e lubrificanti;14/12/2017
1939;1;918;918;KUWAIT PETROLEUM ITALIA S.P.A.;6516542493;Fatt.n. PJ00106782 del 30/11/2017 CARBURANTE PER AUTOMEZZI NOV.2017;13/12/2017;6080;3;26;1;Spese correnti;3;Acquisto di beni e servizi;1;Acquisto di beni;2;Altri beni di consumo;2;Carburanti, combustibili e lubrificanti;14/12/2017
1940;1;994,32;994,32;KUWAIT PETROLEUM ITALIA S.P.A.;6516542493;Fatt.n. PJ00106782 del 30/11/2017 CARBURANTE PER AUTOMEZZI NOV.2017;13/12/2017;6080;4;27;1;Spese correnti;3;Acquisto di beni e servizi;1;Acquisto di beni;2;Altri beni di consumo;2;Carburanti, combustibili e lubrificanti;14/12/2017
1941;1;109;109;KUWAIT PETROLEUM ITALIA S.P.A.;6516542493;Fatt.n. PJ00106782 del 30/11/2017 CARBURANTE PER AUTOMEZZI NOV.2017;13/12/2017;6080;7;29;1;Spese correnti;3;Acquisto di beni e servizi;1;Acquisto di beni;2;Altri beni di consumo;2;Carburanti, combustibili e lubrificanti;14/12/2017
1942;1;138,51;197,25;SCAFIDI GIUSEPPE;ZC417E0C95;SALDO Fatt.n. 000048-2017-FE  del 28/11/2017 RIFERIMENTO PREVENTIVO 80/2017 DEL 25/09//2017 SU SCUOLABUS IVECO DAILY TG CT914ML;13/12/2017;6070;9;407;1;Spese correnti;3;Acquisto di beni e servizi;2;Acquisto di servizi;9;Manutenzione ordinaria e riparazioni;1;Manutenzione ordinaria e riparazioni di mezzi di trasporto ad uso civile, di sicurezza e ordine pubblico;14/12/2017
1942;2;60,74;197,25;SCAFIDI GIUSEPPE;ZC417E0C95;SALDO Fatt.n. 000049-2017-FE  del 28/11/2017 RIFERIMENTO PREVENTIVO 81/2017 DEL 16/10/2017 SU SCUOLABUS IVECO DAILY TG CW015TH;13/12/2017;6070;9;407;1;Spese correnti;3;Acquisto di beni e servizi;2;Acquisto di servizi;9;Manutenzione ordinaria e riparazioni;1;Manutenzione ordinaria e riparazioni di mezzi di trasporto ad uso civile, di sicurezza e ordine pubblico;14/12/2017
1943;1;680,47;680,47;SCAFIDI GIUSEPPE;ZC417E0C95;SALDO Fatt.n. 000050-2017-FE  del 28/11/2017 RIFERIMENTO PREVENTIVO 82/2017 DEL 16/10/2017 SU SUZUKI IGNIS TG CN409JZ;13/12/2017;6070;4;404;1;Spese correnti;3;Acquisto di beni e servizi;2;Acquisto di servizi;9;Manutenzione ordinaria e riparazioni;1;Manutenzione ordinaria e riparazioni di mezzi di trasporto ad uso civile, di sicurezza e ordine pubblico;14/12/2017
1944;1;452,33;452,33;SCAFIDI GIUSEPPE;ZCB17E106E;SALDO Fatt.n. 000051-2017-FE  del 28/11/2017 RIFERIMENTO PREVENTIVO N.83/2017 DEL 16/10/2017 SU IVECO DAILY TG CT940ML;13/12/2017;6070;9;514;1;Spese correnti;3;Acquisto di beni e servizi;2;Acquisto di servizi;9;Manutenzione ordinaria e riparazioni;1;Manutenzione ordinaria e riparazioni di mezzi di trasporto ad uso civile, di sicurezza e ordine pubblico;14/12/2017
1945;1;671,68;671,68;CARTAREGIA COSIMO;Z591CCA947;ACCONTO Fatt.n. 19/PA  del 20/10/2017 Rif. Determina  n.286 del 30/12/2016-MANUTENZIONE IMPIANTI RISCALDAMENTO E CONDIZIONATORI;13/12/2017;3010;3;290;2;Spese in conto capitale;2;Investimenti fissi lordi e acquisto di terreni;1;Beni materiali;9;Beni immobili;1;Fabbricati ad uso abitativo;14/12/2017
1946;1;256,45;256,45;CARTAREGIA COSIMO;Z591CCA947;SALDO Fatt.n. 19/PA  del 20/10/2017 Rif. Determina  n.286 del 30/12/2016-MANUTENZIONE IMPIANTI RISCALDAMENTO E CONDIZIONATORI;13/12/2017;6120;0;494;1;Spese correnti;3;Acquisto di beni e servizi;2;Acquisto di servizi;9;Manutenzione ordinaria e riparazioni;8;Manutenzione ordinaria e riparazioni di beni immobili;14/12/2017
1947;1;854;854;CARTAREGIA COSIMO;Z401FFBEE5;SALDO Fatt.n. 18/PA  del 26/09/2017 Rif. Determina prot. 10994  del 21/09/2017-FORN. E POSA IN OPERA SERBATOIO PALAZZO IDRICO MUNICIPALE;13/12/2017;3010;3;289;2;Spese in conto capitale;2;Investimenti fissi lordi e acquisto di terreni;1;Beni materiali;9;Beni immobili;1;Fabbricati ad uso abitativo;14/12/2017
1948;1;790,72;2.902,52;CARTAREGIA COSIMO;Z571F8C9B3;SALDO Fatt.n. 20/PA  del 23/11/2017 Rif. Determina prot. 125  del 01/08/2017-MANUTENZ. IMP. PUBBL. ILLUMINAZIONE SETT.2017;13/12/2017;3930;1;211;1;Spese correnti;3;Acquisto di beni e servizi;2;Acquisto di servizi;15;Contratti di servizio pubblico;999;Altre spese per contratti di servizio pubblico;14/12/2017
1948;2;2.112,80;2.902,52;CARTAREGIA COSIMO;Z571F8C9B3;SALDO Fatt.n. 21/PA  del 23/11/2017 Rif. Determina prot. 125  del 01/08/2017-MANUTENZ. IMP. PUBBL. ILLUMINAZIONE SETT.2017;13/12/2017;3930;1;211;1;Spese correnti;3;Acquisto di beni e servizi;2;Acquisto di servizi;15;Contratti di servizio pubblico;999;Altre spese per contratti di servizio pubblico;14/12/2017
1949;1;500;500;PARROCCHIA S.MARIA E S.PANCRAZIO; ;CONTRIBUTO OROLOGIO CHIESA S.MARIA ANNO 2017;13/12/2017;1160;1;432;1;Spese correnti;3;Acquisto di beni e servizi;2;Acquisto di servizi;9;Manutenzione ordinaria e riparazioni;11;Manutenzione ordinaria e riparazioni di altri beni materiali;14/12/2017
1950;1;32,09;32,09;AUTOMOBILE CLUB D'ITALIA; ;SALDO Fatt.n. 0000030857  del 11/12/2017 consultazione p.r.a. periodo mar./ott.2017;13/12/2017;1272;0;148;1;Spese correnti;3;Acquisto di beni e servizi;2;Acquisto di servizi;99;Altri servizi;999;Altri servizi diversi n.a.c.;14/12/2017
1951;1;503,32;503,32;Tiro a Segno Nazionale - Sezione di Milazzo; ;SALDO Fatt.n. 16/E  del 02/12/2017 TIRO A SEGNO ANNO 2017;13/12/2017;1267;0;149;1;Spese correnti;3;Acquisto di beni e servizi;2;Acquisto di servizi;99;Altri servizi;999;Altri servizi diversi n.a.c.;14/12/2017
1952;1;558,79;558,79;LA BOTTEGA DEL LETTORE DI MOSCA LUIGIA  & C. S.A.S.; ;SALDO Fatt.n. 16  del 23/11/2017 BUONI LIBRO A.S.2017/18;13/12/2017;2000;10;404;1;Spese correnti;3;Acquisto di beni e servizi;2;Acquisto di servizi;99;Altri servizi;999;Altri servizi diversi n.a.c.;14/12/2017
1953;1;44,69;45,72;AUTOSTRADE PER L'ITALIA S.p.A.;0;ACCONTO Fatt.n. 900024108D  del 30/11/2017 pedaggi autostradali nov.2017;14/12/2017;1017;0;38;1;Spese correnti;3;Acquisto di beni e servizi;2;Acquisto di servizi;99;Altri servizi;999;Altri servizi diversi n.a.c.;15/12/2017
1953;2;1,03;45,72;TELEPASS SPA;0;ACCONTO Fatt.n. 900024146T  del 30/11/2017 canone telepass nov.2017;14/12/2017;1017;0;38;1;Spese correnti;3;Acquisto di beni e servizi;2;Acquisto di servizi;99;Altri servizi;999;Altri servizi diversi n.a.c.;15/12/2017
1955;1;604,9;604,9;PARAVIA ELEVATORS SERVICE SRL;Z20198671B;SALDO Fatt.n. 20171400203  del 04/12/2017 canone manutenzione ascensore ist.comprensivo 01/04-31/12/2017;14/12/2017;3010;3;126;2;Spese in conto capitale;2;Investimenti fissi lordi e acquisto di terreni;1;Beni materiali;9;Beni immobili;1;Fabbricati ad uso abitativo;14/12/2017
1956;1;837,21;837,21;ENEL ENERGIA SPA; ;SALDO Fatt.n. 004801794910  del 09/12/2017 FATT. NOV.2017;14/12/2017;6030;5;412;1;Spese correnti;3;Acquisto di beni e servizi;2;Acquisto di servizi;5;Utenze e canoni;4;Energia elettrica;14/12/2017
1957;1;301,62;6.776,50;ENEL ENERGIA SPA; ;SALDO Fatt.n. 004801794908  del 09/12/2017 FATT. I.P. NOV.2017;14/12/2017;6030;12;419;1;Spese correnti;3;Acquisto di beni e servizi;2;Acquisto di servizi;5;Utenze e canoni;4;Energia elettrica;14/12/2017
1957;2;6.475,88;6.776,50;ENEL ENERGIA SPA; ;SALDO Fatt.n. 004801794909  del 09/12/2017 F. I.P. NOV.2017;14/12/2017;6030;12;419;1;Spese correnti;3;Acquisto di beni e servizi;2;Acquisto di servizi;5;Utenze e canoni;4;Energia elettrica;14/12/2017
2013;1;1.518,37;2.126,72;FIORE SALVATORE VITTORIO; ;indennita' funzione dicembre 2017;14/12/2017;1001;0;42;1;Spese correnti;3;Acquisto di beni e servizi;2;Acquisto di servizi;1;Organi e incarichi istituzionali dell'amministrazione;1;Organi istituzionali dell'amministrazione - Indennità;15/12/2017
2013;2;152,83;2.126,72;INTERDONATO ARMANDO; ;indennita' funzione dicembre 2017;14/12/2017;1001;0;42;1;Spese correnti;3;Acquisto di beni e servizi;2;Acquisto di servizi;1;Organi e incarichi istituzionali dell'amministrazione;1;Organi istituzionali dell'amministrazione - Indennità;15/12/2017
2013;3;228,76;2.126,72;LAMANCUSA MARCO; ;indennita' funzione dicembre 2017;14/12/2017;1001;0;42;1;Spese correnti;3;Acquisto di beni e servizi;2;Acquisto di servizi;1;Organi e incarichi istituzionali dell'amministrazione;1;Organi istituzionali dell'amministrazione - Indennità;15/12/2017
2013;4;228,76;2.126,72;PETTINATO  ROSA SANDRA; ;indennita' funzione dicembre 2017;14/12/2017;1001;0;42;1;Spese correnti;3;Acquisto di beni e servizi;2;Acquisto di servizi;1;Organi e incarichi istituzionali dell'amministrazione;1;Organi istituzionali dell'amministrazione - Indennità;15/12/2017
2014;1;228,76;228,76;FORZANO GIUSEPPE; ;Indennita' funzione Presidente Consiglio dic. 2017;14/12/2017;1001;0;42;1;Spese correnti;3;Acquisto di beni e servizi;2;Acquisto di servizi;1;Organi e incarichi istituzionali dell'amministrazione;1;Organi istituzionali dell'amministrazione - Indennità;15/12/2017
2016;1;10,61;10,84;AUTOSTRADE PER L'ITALIA S.p.A.; ;SALDO Fatt.n. 900024108D  del 30/11/2017 pedaggi autostradali nov.2017;14/12/2017;1017;0;38;1;Spese correnti;3;Acquisto di beni e servizi;2;Acquisto di servizi;99;Altri servizi;999;Altri servizi diversi n.a.c.;20/12/2017
2016;2;0,23;10,84;TELEPASS SPA; ;SALDO Fatt.n. 900024146T  del 30/11/2017 canone telepass nov.2017;14/12/2017;1017;0;38;1;Spese correnti;3;Acquisto di beni e servizi;2;Acquisto di servizi;99;Altri servizi;999;Altri servizi diversi n.a.c.;20/12/2017
2019;1;7.944,33;7.944,33;Eco.Geos S.r.l.;7258614DC0;SALDO Fatt.n. 43|2017  del 30/11/2017 serv. raccolta rr.ss.uu. 17/11-30/11/2017;18/12/2017;1744;0;436;1;Spese correnti;3;Acquisto di beni e servizi;2;Acquisto di servizi;15;Contratti di servizio pubblico;5;Contratti di servizio per il conferimento in discarica dei rifiuti;19/12/2017
2021;1;5,16;22,29;AUTOSTRADE PER L'ITALIA S.p.A.;0;SALDO Fatt.n. 900019475D  del 30/09/2017 PEGAGGI AUTOSTRADALI SETT.2017;18/12/2017;1017;0;38;1;Spese correnti;3;Acquisto di beni e servizi;2;Acquisto di servizi;99;Altri servizi;999;Altri servizi diversi n.a.c.;18/12/2017
2021;2;5,25;22,29;AUTOSTRADE PER L'ITALIA S.p.A.;0;SALDO Fatt.n. 900015161D  del 30/07/2017 PEDAGGI AUTOSTRADALI luglio 2017;18/12/2017;1017;0;38;1;Spese correnti;3;Acquisto di beni e servizi;2;Acquisto di servizi;99;Altri servizi;999;Altri servizi diversi n.a.c.;18/12/2017
2021;3;5,48;22,29;AUTOSTRADE PER L'ITALIA S.p.A.;0;SALDO Fatt.n. 900017310D  del 30/08/2017 pedaggi autostradali ago.2017;18/12/2017;1017;0;38;1;Spese correnti;3;Acquisto di beni e servizi;2;Acquisto di servizi;99;Altri servizi;999;Altri servizi diversi n.a.c.;18/12/2017
2021;4;5,48;22,29;AUTOSTRADE PER L'ITALIA S.p.A.;0;SALDO Fatt.n. 900021718D  del 30/10/2017 pedaggi autostradali ott.2017;18/12/2017;1017;0;38;1;Spese correnti;3;Acquisto di beni e servizi;2;Acquisto di servizi;99;Altri servizi;999;Altri servizi diversi n.a.c.;18/12/2017
2021;5;0,23;22,29;TELEPASS SPA;0;SALDO Fatt.n. 900021824T  del 30/10/2017 canone telepass ott.2017;18/12/2017;1017;0;38;1;Spese correnti;3;Acquisto di beni e servizi;2;Acquisto di servizi;99;Altri servizi;999;Altri servizi diversi n.a.c.;18/12/2017
2021;6;0,23;22,29;TELEPASS SPA;0;SALDO Fatt.n. 900015331T  del 30/07/2017 canone telepass luglio 2017;18/12/2017;1017;0;38;1;Spese correnti;3;Acquisto di beni e servizi;2;Acquisto di servizi;99;Altri servizi;999;Altri servizi diversi n.a.c.;18/12/2017
2021;7;0,23;22,29;TELEPASS SPA;0;SALDO Fatt.n. 900017466T  del 30/08/2017 CANONE LOCAZIONE TELEPASS AGO.2017;18/12/2017;1017;0;38;1;Spese correnti;3;Acquisto di beni e servizi;2;Acquisto di servizi;99;Altri servizi;999;Altri servizi diversi n.a.c.;18/12/2017
2021;8;0,23;22,29;TELEPASS SPA;0;SALDO Fatt.n. 900019616T  del 30/09/2017 CANONE LOCAZIONE TELEPASS SETT.2017;18/12/2017;1017;0;38;1;Spese correnti;3;Acquisto di beni e servizi;2;Acquisto di servizi;99;Altri servizi;999;Altri servizi diversi n.a.c.;18/12/2017
2022;1;236,81;236,81;ECONOMO COMUNALE; ;RIMBORSO SPESE ECONOMATO PER SERVIZIO CATTURA E CUSTODIA CANI RANDAGI;18/12/2017;1766;0;117;1;Spese correnti;3;Acquisto di beni e servizi;2;Acquisto di servizi;99;Altri servizi;999;Altri servizi diversi n.a.c.;18/12/2017
2023;1;11.933,34;11.933,34;ECONOMO COMUNALE; ;RIMBORSO SPESE ECONOMATO PER SPESE POSTALI ANNO 2017;18/12/2017;1043;3;448;1;Spese correnti;3;Acquisto di beni e servizi;2;Acquisto di servizi;16;Servizi amministrativi;2;Spese postali;19/12/2017
2024;1;88,6;88,6;ECONOMO COMUNALE; ;RIMBORSO SPESE ECONOMATO PER AUTOMEZZI COMUNALI ANNO 2017;18/12/2017;6070;1;515;1;Spese correnti;3;Acquisto di beni e servizi;2;Acquisto di servizi;9;Manutenzione ordinaria e riparazioni;1;Manutenzione ordinaria e riparazioni di mezzi di trasporto ad uso civile, di sicurezza e ordine pubblico;19/12/2017
2025;1;35;35;ECONOMO COMUNALE; ;RIMBORSO SPESE ECONOMATO PER AUTOMEZZI COMUNALI ANNO 2017;18/12/2017;6070;2;516;1;Spese correnti;3;Acquisto di beni e servizi;2;Acquisto di servizi;9;Manutenzione ordinaria e riparazioni;1;Manutenzione ordinaria e riparazioni di mezzi di trasporto ad uso civile, di sicurezza e ordine pubblico;19/12/2017
2026;1;127,88;127,88;ECONOMO COMUNALE; ;RIMBORSO SPESE ECONOMATO PER AUTOMEZZI COMUNALI ANNO 2017;18/12/2017;6070;4;517;1;Spese correnti;3;Acquisto di beni e servizi;2;Acquisto di servizi;9;Manutenzione ordinaria e riparazioni;1;Manutenzione ordinaria e riparazioni di mezzi di trasporto ad uso civile, di sicurezza e ordine pubblico;19/12/2017
2027;1;382,98;382,98;ECONOMO COMUNALE; ;RIMBORSO SPESE ECONOMATO PER AUTOMEZZI COMUNALI ANNO 2017;18/12/2017;6070;5;518;1;Spese correnti;3;Acquisto di beni e servizi;2;Acquisto di servizi;9;Manutenzione ordinaria e riparazioni;1;Manutenzione ordinaria e riparazioni di mezzi di trasporto ad uso civile, di sicurezza e ordine pubblico;19/12/2017
2028;1;370,66;370,66;ECONOMO COMUNALE; ;RIMBORSO SPESE ECONOMATO PER AUTOMEZZI COMUNALI ANNO 2017;18/12/2017;6070;7;519;1;Spese correnti;3;Acquisto di beni e servizi;2;Acquisto di servizi;9;Manutenzione ordinaria e riparazioni;1;Manutenzione ordinaria e riparazioni di mezzi di trasporto ad uso civile, di sicurezza e ordine pubblico;19/12/2017
2029;1;1.440,32;1.440,32;ECONOMO COMUNALE; ;RIMBORSO SPESE ECONOMATO PER AUTOMEZZI COMUNALI ANNO 2017;18/12/2017;6070;9;520;1;Spese correnti;3;Acquisto di beni e servizi;2;Acquisto di servizi;9;Manutenzione ordinaria e riparazioni;1;Manutenzione ordinaria e riparazioni di mezzi di trasporto ad uso civile, di sicurezza e ordine pubblico;19/12/2017
2030;1;690,55;690,55;ECONOMO COMUNALE; ;RIMBORSO SPESE ECONOMATO PER REALIZZAZIONE PROGETTI DI DEMOCRAZIA PARTECIPATA;18/12/2017;1477;0;415;1;Spese correnti;10;Altre spese correnti;99;Altre spese correnti n.a.c.;99;Altre spese correnti n.a.c.;999;Altre spese correnti n.a.c.;19/12/2017
2031;1;292,4;292,4;ECONOMO COMUNALE; ;RIMBORSO SPESE ECONOMATO PER ACQUISTO MATERIALE VARIO SERVIZIO ASILO NIDO;18/12/2017;1776;0;196;1;Spese correnti;3;Acquisto di beni e servizi;1;Acquisto di beni;2;Altri beni di consumo;999;Altri beni e materiali di consumo n.a.c.;19/12/2017
2033;1;100,9;250,75;AUTOLINEE MAGISTRO SRL;Z9DIFE4BDA;SALDO Fatt.n. FATTPA 124_17  del 09/12/2017 TRASPORTO STUDENTI NOV.2017;19/12/2017;2000;9;282;1;Spese correnti;3;Acquisto di beni e servizi;2;Acquisto di servizi;15;Contratti di servizio pubblico;2;Contratti di servizio di trasporto scolastico;19/12/2017
2033;2;150,85;250,75;AUTOLINEE MAGISTRO SRL;Z9D1FE4BDA;SALDO Fatt.n. FATTPA 123_17  del 30/11/2017 TRASPORTO STUDENTI SETT./OTT.2017;19/12/2017;2000;9;282;1;Spese correnti;3;Acquisto di beni e servizi;2;Acquisto di servizi;15;Contratti di servizio pubblico;2;Contratti di servizio di trasporto scolastico;19/12/2017
2035;1;1.500,00;1.500,00;PARROCCHIA S.MARIA E S.PANCRAZIO; ;CONTRIBUTO FESTEGGIAMENTI SAN BIAGIO;20/12/2017;2000;7;448;1;Spese correnti;4;Trasferimenti correnti;4;Trasferimenti correnti a Istituzioni Sociali Private;1;Trasferimenti correnti a Istituzioni Sociali Private;1;Trasferimenti correnti a Istituzioni Sociali Private;20/12/2017
2036;1;350;1.050,00;CATALANO SIMONE; ;ATTUAZIONE PROGETTO LAVORI SOCIALMENTE UTILI PERIODO 15/11-14/12/2017;20/12/2017;1900;0;301;1;Spese correnti;4;Trasferimenti correnti;2;Trasferimenti correnti a Famiglie;1;Interventi previdenziali;999;Altri sussidi e assegni;20/12/2017
2036;2;350;1.050,00;SCHEPISI MAURIZIO; ;ATTUAZIONE PROGETTO LAVORI SOCIALMENTE UTILI PERIODO 15/11-14/12/2017;20/12/2017;1900;0;301;1;Spese correnti;4;Trasferimenti correnti;2;Trasferimenti correnti a Famiglie;1;Interventi previdenziali;999;Altri sussidi e assegni;20/12/2017
2036;3;350;1.050,00;STARVAGGI DANIELA; ;ATTUAZIONE PROGETTO LAVORI SOCIALMENTE UTILI PERIODO 15/11-14/12/2017;20/12/2017;1900;0;301;1;Spese correnti;4;Trasferimenti correnti;2;Trasferimenti correnti a Famiglie;1;Interventi previdenziali;999;Altri sussidi e assegni;20/12/2017
2037;1;740,47;740,47;TESORIERE COMUNALE-CREDITO SICILIANO;ZOA11DF579;D.D.G. N.413/04.10.13-REDAZIONE PAES-SPESE PERSONALE INTERNO;20/12/2017;1581;0;521;1;Spese correnti;3;Acquisto di beni e servizi;2;Acquisto di servizi;99;Altri servizi;999;Altri servizi diversi n.a.c.;20/12/2017
2038;1;400;1.200,00;ARLOTTA MARIA CATENA; ;assistenza economica 2017;20/12/2017;1900;0;449;1;Spese correnti;4;Trasferimenti correnti;2;Trasferimenti correnti a Famiglie;1;Interventi previdenziali;999;Altri sussidi e assegni;20/12/2017
2038;2;300;1.200,00;FURNARI GAETANA; ;assistenza economica 2017;20/12/2017;1900;0;449;1;Spese correnti;4;Trasferimenti correnti;2;Trasferimenti correnti a Famiglie;1;Interventi previdenziali;999;Altri sussidi e assegni;20/12/2017
2038;3;250;1.200,00;MAGRETTI SILVANA RITA; ;assistenza economica 2017;20/12/2017;1900;0;449;1;Spese correnti;4;Trasferimenti correnti;2;Trasferimenti correnti a Famiglie;1;Interventi previdenziali;999;Altri sussidi e assegni;20/12/2017
2038;4;250;1.200,00;RADU ZAMFIRA; ;assistenza economica 2017;20/12/2017;1900;0;449;1;Spese correnti;4;Trasferimenti correnti;2;Trasferimenti correnti a Famiglie;1;Interventi previdenziali;999;Altri sussidi e assegni;20/12/2017
2039;1;2.648,87;2.648,87;A.I.G. SRLS;Z0A11DF579;SALDO Fatt.n. 01/2015  del 21/01/2015 REDAZIONE PIANO DIO AZIONE PER L'ENERGIA PAES;20/12/2017;1581;0;518;1;Spese correnti;3;Acquisto di beni e servizi;2;Acquisto di servizi;99;Altri servizi;999;Altri servizi diversi n.a.c.;20/12/2017
2040;1;195;195;MAIL BOXES DI GIUTTARI PAOLO FRANCESCO;ZOA11DF579;SALDO Fatt.n. 2015/17  del 21/01/2015 n.200 brochures e stampe PAES;20/12/2017;1581;0;519;1;Spese correnti;3;Acquisto di beni e servizi;2;Acquisto di servizi;99;Altri servizi;999;Altri servizi diversi n.a.c.;20/12/2017
2042;1;214,84;5.560,03;"AB2 Engineering Progettazione &amp; Costruzione s.r.l."; ;SALDO Fatt.n. 4/PA  del 12/10/2017 lavori realizzazione alloggi popolari-certificato regolare esecuzione;21/12/2017;5064;0;1428;2;Spese in conto capitale;2;Investimenti fissi lordi e acquisto di terreni;1;Beni materiali;9;Beni immobili;1;Fabbricati ad uso abitativo;21/12/2017
2042;2;5.346,19;5.560,03;"AB2 Engineering Progettazione &amp; Costruzione s.r.l.";59998993D9;ACCONTO Fatt.n. 4/PA  del 12/10/2017 lavori realizzazione alloggi popolari-certificato regolare esecuzione;21/12/2017;5064;0;1428;2;Spese in conto capitale;2;Investimenti fissi lordi e acquisto di terreni;1;Beni materiali;9;Beni immobili;1;Fabbricati ad uso abitativo;21/12/2017
2043;1;320;320;ECONOMO COMUNALE; ;RIMBORSO SPESE ECONOMATO PER SPESE VIAGGIO FORMAZIONE E ISTRUZIONE PERSONALE UFFICIO STIPENDI;21/12/2017;1040;0;285;1;Spese correnti;3;Acquisto di beni e servizi;2;Acquisto di servizi;4;Acquisto di servizi per formazione e addestramento del personale dell'ente;999;Acquisto di servizi per altre spese per formazione e addestramento n.a.c.;21/12/2017
2044;1;350;350;VELEA CATALINA ANDREEA; ;ATTUAZIONE PROGETTO LAVORI SOCIALMENTE UTILI PERIODO 15/11-14/12/2017;21/12/2017;1900;0;301;1;Spese correnti;4;Trasferimenti correnti;2;Trasferimenti correnti a Famiglie;1;Interventi previdenziali;999;Altri sussidi e assegni;21/12/2017
2047;1;7.496,05;7.496,05;SICULA TRASPORTI S.R.L.;6150991658;SALDO Fatt.n. 2073/03  del 31/10/2017 CONFERIMENTO RIFIUTI IN DISCARICA OTT.2017;27/12/2017;1743;0;511;1;Spese correnti;3;Acquisto di beni e servizi;2;Acquisto di servizi;15;Contratti di servizio pubblico;5;Contratti di servizio per il conferimento in discarica dei rifiuti;27/12/2017
2048;1;1.779,03;1.779,03;Pi.Eco S.r.l.;Z1D1B9D2D9;SALDO Fatt.n. 233  del 06/12/2017 conferimento rifiuti biodegradabili ott.2017;27/12/2017;1743;0;512;1;Spese correnti;3;Acquisto di beni e servizi;2;Acquisto di servizi;15;Contratti di servizio pubblico;5;Contratti di servizio per il conferimento in discarica dei rifiuti;27/12/2017
